{"text_format":"1","workbook":"xlsx","n_sheets":1,"sheets":["Лист1"],"not_rendered":{"charts":0,"images":0,"macros":0,"external_links":0,"defined_names":0,"comments":0,"pivot_tables":0},"unopened":[],"bounds":{"document_bytes":16777216,"sheet_cells":100000,"rows_first":2000,"rows_last":500,"rows_between":2000,"halvings":0,"cell_chars":16384,"cell_head_chars":4096},"cells_cut":0,"cells_raw":0,"read":"whole","date_system":"1900"}

{"sheet":"Лист1","index":0,"n_rows":1810,"n_cols":11,"rows_kept":1810,"cut":false,"hidden":false,"merged":[[0,0,0,10]]}
["Выданные поручения "]
["№ п/п","Наименование поручения","№ входящего документа","Дата выдачи","Выдал поручение","Ответственный исполнитель","Соисполнители","Срок выполнения (план)","Периодичнось","Срок выполнения (факт)","Статус"]
[{"$f":"IF(ISBLANK(B3),\"\",0+1)","v":""},null,null,"2022-09-19",null,null,null,{"$f":"IF(I3=\"Ежемесячно\",D3+720/24,\"\")","v":"2022-10-19"},"Ежемесячно",null,{"$f":"IF(H3-24/24=TODAY(),\"Истекает\",IF(H3-48/24=TODAY(),\"Истекает\",IF(H3-72/24=TODAY(),\"Истекает\",IF(D3=\"\",\"\",IF(ISBLANK(J3),IF(TODAY()<H3,\"В работе\",\"Истекло\"),IF(H3>=J3,\"Выполнено\",\"Просрочен\"))))))","v":"В работе"}]
[{"$f":"IF(ISBLANK(B4),\"\",A3+1)","v":""},null,null,null,null,null,null,null,null,null,{"$f":"IF(H4-24/24=TODAY(),\"Истекает\",IF(H4-48/24=TODAY(),\"Истекает\",IF(H4-72/24=TODAY(),\"Истекает\",IF(D4=\"\",\"\",IF(ISBLANK(J4),IF(TODAY()<H4,\"В работе\",\"Истекло\"),IF(H4>=J4,\"Выполнено\",\"Просрочен\"))))))","v":""}]
["",null,null,null,null,null,null,null,null,null,{"$f":"IF(H5-24/24=TODAY(),\"Истекает\",IF(H5-48/24=TODAY(),\"Истекает\",IF(H5-72/24=TODAY(),\"Истекает\",IF(D5=\"\",\"\",IF(ISBLANK(J5),IF(TODAY()<H5,\"В работе\",\"Истекло\"),IF(H5>=J5,\"Выполнено\",\"Просрочен\"))))))","v":""}]
["",null,null,null,null,null,null,null,null,null,""]
["",null,null,null,null,null,null,null,null,null,""]
["",null,null,null,null,null,null,null,null,null,""]
["",null,null,null,null,null,null,null,null,null,""]
["",null,null,null,null,null,null,null,null,null,""]
["",null,null,null,null,null,null,null,null,null,""]
["",null,null,null,null,null,null,null,null,null,""]
["",null,null,null,null,null,null,null,null,null,""]
["",null,null,null,null,null,null,null,null,null,""]
["",null,null,null,null,null,null,null,null,null,""]
["",null,null,null,null,null,null,null,null,null,""]
["",null,null,null,null,null,null,null,null,null,""]
["",null,null,null,null,null,null,null,null,null,""]
["",null,null,null,null,null,null,null,null,null,""]
["",null,null,null,null,null,null,null,null,null,""]
["",null,null,null,null,null,null,null,null,null,""]
["",null,null,null,null,null,null,null,null,null,""]
["",null,null,null,null,null,null,null,null,null,""]
["",null,null,null,null,null,null,null,null,null,""]
["",null,null,null,null,null,null,null,null,null,""]
["",null,null,null,null,null,null,null,null,null,""]
["",null,null,null,null,null,null,null,null,null,""]
["",null,null,null,null,null,null,null,null,null,""]
["",null,null,null,null,null,null,null,null,null,""]
["",null,null,null,null,null,null,null,null,null,""]
["",null,null,null,null,null,null,null,null,null,""]
["",null,null,null,null,null,null,null,null,null,""]
["",null,null,null,null,null,null,null,null,null,""]
["",null,null,null,null,null,null,null,null,null,""]
["",null,null,null,null,null,null,null,null,null,""]
["",null,null,null,null,null,null,null,null,null,""]
["",null,null,null,null,null,null,null,null,null,""]
["",null,null,null,null,null,null,null,null,null,""]
["",null,null,null,null,null,null,null,null,null,""]
["",null,null,null,null,null,null,null,null,null,""]
["",null,null,null,null,null,null,null,null,null,""]
["",null,null,null,null,null,null,null,null,null,""]
["",null,null,null,null,null,null,null,null,null,""]
["",null,null,null,null,null,null,null,null,null,""]
["",null,null,null,null,null,null,null,null,null,""]
["",null,null,null,null,null,null,null,null,null,""]
["",null,null,null,null,null,null,null,null,null,""]
["",null,null,null,null,null,null,null,null,null,""]
["",null,null,null,null,null,null,null,null,null,""]
["",null,null,null,null,null,null,null,null,null,""]
["",null,null,null,null,null,null,null,null,null,""]
["",null,null,null,null,null,null,null,null,null,""]
["",null,null,null,null,null,null,null,null,null,""]
["",null,null,null,null,null,null,null,null,null,""]
["",null,null,null,null,null,null,null,null,null,""]
["",null,null,null,null,null,null,null,null,null,""]
["",null,null,null,null,null,null,null,null,null,""]
["",null,null,null,null,null,null,null,null,null,""]
["",null,null,null,null,null,null,null,null,null,""]
["",null,null,null,null,null,null,null,null,null,""]
["",null,null,null,null,null,null,null,null,null,""]
["",null,null,null,null,null,null,null,null,null,""]
["",null,null,null,null,null,null,null,null,null,""]
["",null,null,null,null,null,null,null,null,null,""]
["",null,null,null,null,null,null,null,null,null,""]
["",null,null,null,null,null,null,null,null,null,""]
["",null,null,null,null,null,null,null,null,null,""]
[{"$f":"IF(ISBLANK(B68),\"\",A67+1)","v":""},null,null,null,null,null,null,null,null,null,{"$f":"IF(H68-24/24=TODAY(),\"Истекает\",IF(H68-48/24=TODAY(),\"Истекает\",IF(H68-72/24=TODAY(),\"Истекает\",IF(D68=\"\",\"\",IF(ISBLANK(J68),IF(TODAY()<H68,\"В работе\",\"Истекло\"),IF(H68>=J68,\"Выполнено\",\"Просрочен\"))))))","v":""}]
["",null,null,null,null,null,null,null,null,null,""]
["",null,null,null,null,null,null,null,null,null,""]
["",null,null,null,null,null,null,null,null,null,""]
["",null,null,null,null,null,null,null,null,null,""]
["",null,null,null,null,null,null,null,null,null,""]
["",null,null,null,null,null,null,null,null,null,""]
["",null,null,null,null,null,null,null,null,null,""]
["",null,null,null,null,null,null,null,null,null,""]
["",null,null,null,null,null,null,null,null,null,""]
["",null,null,null,null,null,null,null,null,null,""]
["",null,null,null,null,null,null,null,null,null,""]
["",null,null,null,null,null,null,null,null,null,""]
["",null,null,null,null,null,null,null,null,null,""]
["",null,null,null,null,null,null,null,null,null,""]
["",null,null,null,null,null,null,null,null,null,""]
["",null,null,null,null,null,null,null,null,null,""]
["",null,null,null,null,null,null,null,null,null,""]
["",null,null,null,null,null,null,null,null,null,""]
["",null,null,null,null,null,null,null,null,null,""]
["",null,null,null,null,null,null,null,null,null,""]
["",null,null,null,null,null,null,null,null,null,""]
["",null,null,null,null,null,null,null,null,null,""]
["",null,null,null,null,null,null,null,null,null,""]
["",null,null,null,null,null,null,null,null,null,""]
["",null,null,null,null,null,null,null,null,null,""]
["",null,null,null,null,null,null,null,null,null,""]
["",null,null,null,null,null,null,null,null,null,""]
["",null,null,null,null,null,null,null,null,null,""]
["",null,null,null,null,null,null,null,null,null,""]
["",null,null,null,null,null,null,null,null,null,""]
["",null,null,null,null,null,null,null,null,null,""]
["",null,null,null,null,null,null,null,null,null,""]
["",null,null,null,null,null,null,null,null,null,""]
["",null,null,null,null,null,null,null,null,null,""]
["",null,null,null,null,null,null,null,null,null,""]
["",null,null,null,null,null,null,null,null,null,""]
["",null,null,null,null,null,null,null,null,null,""]
["",null,null,null,null,null,null,null,null,null,""]
["",null,null,null,null,null,null,null,null,null,""]
["",null,null,null,null,null,null,null,null,null,""]
["",null,null,null,null,null,null,null,null,null,""]
["",null,null,null,null,null,null,null,null,null,""]
["",null,null,null,null,null,null,null,null,null,""]
["",null,null,null,null,null,null,null,null,null,""]
["",null,null,null,null,null,null,null,null,null,""]
["",null,null,null,null,null,null,null,null,null,""]
["",null,null,null,null,null,null,null,null,null,""]
["",null,null,null,null,null,null,null,null,null,""]
["",null,null,null,null,null,null,null,null,null,""]
["",null,null,null,null,null,null,null,null,null,""]
["",null,null,null,null,null,null,null,null,null,""]
["",null,null,null,null,null,null,null,null,null,""]
["",null,null,null,null,null,null,null,null,null,""]
["",null,null,null,null,null,null,null,null,null,""]
["",null,null,null,null,null,null,null,null,null,""]
["",null,null,null,null,null,null,null,null,null,""]
["",null,null,null,null,null,null,null,null,null,""]
["",null,null,null,null,null,null,null,null,null,""]
["",null,null,null,null,null,null,null,null,null,""]
["",null,null,null,null,null,null,null,null,null,""]
["",null,null,null,null,null,null,null,null,null,""]
["",null,null,null,null,null,null,null,null,null,""]
["",null,null,null,null,null,null,null,null,null,""]
[{"$f":"IF(ISBLANK(B132),\"\",A131+1)","v":""},null,null,null,null,null,null,null,null,null,{"$f":"IF(H132-24/24=TODAY(),\"Истекает\",IF(H132-48/24=TODAY(),\"Истекает\",IF(H132-72/24=TODAY(),\"Истекает\",IF(D132=\"\",\"\",IF(ISBLANK(J132),IF(TODAY()<H132,\"В работе\",\"Истекло\"),IF(H132>=J132,\"Выполнено\",\"Просрочен\"))))))","v":""}]
["",null,null,null,null,null,null,null,null,null,""]
["",null,null,null,null,null,null,null,null,null,""]
["",null,null,null,null,null,null,null,null,null,""]
["",null,null,null,null,null,null,null,null,null,""]
["",null,null,null,null,null,null,null,null,null,""]
["",null,null,null,null,null,null,null,null,null,""]
["",null,null,null,null,null,null,null,null,null,""]
["",null,null,null,null,null,null,null,null,null,""]
["",null,null,null,null,null,null,null,null,null,""]
["",null,null,null,null,null,null,null,null,null,""]
["",null,null,null,null,null,null,null,null,null,""]
["",null,null,null,null,null,null,null,null,null,""]
["",null,null,null,null,null,null,null,null,null,""]
["",null,null,null,null,null,null,null,null,null,""]
["",null,null,null,null,null,null,null,null,null,""]
["",null,null,null,null,null,null,null,null,null,""]
["",null,null,null,null,null,null,null,null,null,""]
["",null,null,null,null,null,null,null,null,null,""]
["",null,null,null,null,null,null,null,null,null,""]
["",null,null,null,null,null,null,null,null,null,""]
["",null,null,null,null,null,null,null,null,null,""]
["",null,null,null,null,null,null,null,null,null,""]
["",null,null,null,null,null,null,null,null,null,""]
["",null,null,null,null,null,null,null,null,null,""]
["",null,null,null,null,null,null,null,null,null,""]
["",null,null,null,null,null,null,null,null,null,""]
["",null,null,null,null,null,null,null,null,null,""]
["",null,null,null,null,null,null,null,null,null,""]
["",null,null,null,null,null,null,null,null,null,""]
["",null,null,null,null,null,null,null,null,null,""]
["",null,null,null,null,null,null,null,null,null,""]
["",null,null,null,null,null,null,null,null,null,""]
["",null,null,null,null,null,null,null,null,null,""]
["",null,null,null,null,null,null,null,null,null,""]
["",null,null,null,null,null,null,null,null,null,""]
["",null,null,null,null,null,null,null,null,null,""]
["",null,null,null,null,null,null,null,null,null,""]
["",null,null,null,null,null,null,null,null,null,""]
["",null,null,null,null,null,null,null,null,null,""]
["",null,null,null,null,null,null,null,null,null,""]
["",null,null,null,null,null,null,null,null,null,""]
["",null,null,null,null,null,null,null,null,null,""]
["",null,null,null,null,null,null,null,null,null,""]
["",null,null,null,null,null,null,null,null,null,""]
["",null,null,null,null,null,null,null,null,null,""]
["",null,null,null,null,null,null,null,null,null,""]
["",null,null,null,null,null,null,null,null,null,""]
["",null,null,null,null,null,null,null,null,null,""]
["",null,null,null,null,null,null,null,null,null,""]
["",null,null,null,null,null,null,null,null,null,""]
["",null,null,null,null,null,null,null,null,null,""]
["",null,null,null,null,null,null,null,null,null,""]
["",null,null,null,null,null,null,null,null,null,""]
["",null,null,null,null,null,null,null,null,null,""]
["",null,null,null,null,null,null,null,null,null,""]
["",null,null,null,null,null,null,null,null,null,""]
["",null,null,null,null,null,null,null,null,null,""]
["",null,null,null,null,null,null,null,null,null,""]
["",null,null,null,null,null,null,null,null,null,""]
["",null,null,null,null,null,null,null,null,null,""]
["",null,null,null,null,null,null,null,null,null,""]
["",null,null,null,null,null,null,null,null,null,""]
["",null,null,null,null,null,null,null,null,null,""]
[{"$f":"IF(ISBLANK(B196),\"\",A195+1)","v":""},null,null,null,null,null,null,null,null,null,{"$f":"IF(H196-24/24=TODAY(),\"Истекает\",IF(H196-48/24=TODAY(),\"Истекает\",IF(H196-72/24=TODAY(),\"Истекает\",IF(D196=\"\",\"\",IF(ISBLANK(J196),IF(TODAY()<H196,\"В работе\",\"Истекло\"),IF(H196>=J196,\"Выполнено\",\"Просрочен\"))))))","v":""}]
["",null,null,null,null,null,null,null,null,null,""]
["",null,null,null,null,null,null,null,null,null,""]
["",null,null,null,null,null,null,null,null,null,""]
["",null,null,null,null,null,null,null,null,null,""]
["",null,null,null,null,null,null,null,null,null,""]
["",null,null,null,null,null,null,null,null,null,""]
["",null,null,null,null,null,null,null,null,null,""]
["",null,null,null,null,null,null,null,null,null,""]
["",null,null,null,null,null,null,null,null,null,""]
["",null,null,null,null,null,null,null,null,null,""]
["",null,null,null,null,null,null,null,null,null,""]
["",null,null,null,null,null,null,null,null,null,""]
["",null,null,null,null,null,null,null,null,null,""]
["",null,null,null,null,null,null,null,null,null,""]
["",null,null,null,null,null,null,null,null,null,""]
["",null,null,null,null,null,null,null,null,null,""]
["",null,null,null,null,null,null,null,null,null,""]
["",null,null,null,null,null,null,null,null,null,""]
["",null,null,null,null,null,null,null,null,null,""]
["",null,null,null,null,null,null,null,null,null,""]
["",null,null,null,null,null,null,null,null,null,""]
["",null,null,null,null,null,null,null,null,null,""]
["",null,null,null,null,null,null,null,null,null,""]
["",null,null,null,null,null,null,null,null,null,""]
["",null,null,null,null,null,null,null,null,null,""]
["",null,null,null,null,null,null,null,null,null,""]
["",null,null,null,null,null,null,null,null,null,""]
["",null,null,null,null,null,null,null,null,null,""]
["",null,null,null,null,null,null,null,null,null,""]
["",null,null,null,null,null,null,null,null,null,""]
["",null,null,null,null,null,null,null,null,null,""]
["",null,null,null,null,null,null,null,null,null,""]
["",null,null,null,null,null,null,null,null,null,""]
["",null,null,null,null,null,null,null,null,null,""]
["",null,null,null,null,null,null,null,null,null,""]
["",null,null,null,null,null,null,null,null,null,""]
["",null,null,null,null,null,null,null,null,null,""]
["",null,null,null,null,null,null,null,null,null,""]
["",null,null,null,null,null,null,null,null,null,""]
["",null,null,null,null,null,null,null,null,null,""]
["",null,null,null,null,null,null,null,null,null,""]
["",null,null,null,null,null,null,null,null,null,""]
["",null,null,null,null,null,null,null,null,null,""]
["",null,null,null,null,null,null,null,null,null,""]
["",null,null,null,null,null,null,null,null,null,""]
["",null,null,null,null,null,null,null,null,null,""]
["",null,null,null,null,null,null,null,null,null,""]
["",null,null,null,null,null,null,null,null,null,""]
["",null,null,null,null,null,null,null,null,null,""]
["",null,null,null,null,null,null,null,null,null,""]
["",null,null,null,null,null,null,null,null,null,""]
["",null,null,null,null,null,null,null,null,null,""]
["",null,null,null,null,null,null,null,null,null,""]
["",null,null,null,null,null,null,null,null,null,""]
["",null,null,null,null,null,null,null,null,null,""]
["",null,null,null,null,null,null,null,null,null,""]
["",null,null,null,null,null,null,null,null,null,""]
["",null,null,null,null,null,null,null,null,null,""]
["",null,null,null,null,null,null,null,null,null,""]
["",null,null,null,null,null,null,null,null,null,""]
["",null,null,null,null,null,null,null,null,null,""]
["",null,null,null,null,null,null,null,null,null,""]
["",null,null,null,null,null,null,null,null,null,""]
[{"$f":"IF(ISBLANK(B260),\"\",A259+1)","v":""},null,null,null,null,null,null,null,null,null,{"$f":"IF(H260-24/24=TODAY(),\"Истекает\",IF(H260-48/24=TODAY(),\"Истекает\",IF(H260-72/24=TODAY(),\"Истекает\",IF(D260=\"\",\"\",IF(ISBLANK(J260),IF(TODAY()<H260,\"В работе\",\"Истекло\"),IF(H260>=J260,\"Выполнено\",\"Просрочен\"))))))","v":""}]
["",null,null,null,null,null,null,null,null,null,""]
["",null,null,null,null,null,null,null,null,null,""]
["",null,null,null,null,null,null,null,null,null,""]
["",null,null,null,null,null,null,null,null,null,""]
["",null,null,null,null,null,null,null,null,null,""]
["",null,null,null,null,null,null,null,null,null,""]
["",null,null,null,null,null,null,null,null,null,""]
["",null,null,null,null,null,null,null,null,null,""]
["",null,null,null,null,null,null,null,null,null,""]
["",null,null,null,null,null,null,null,null,null,""]
["",null,null,null,null,null,null,null,null,null,""]
["",null,null,null,null,null,null,null,null,null,""]
["",null,null,null,null,null,null,null,null,null,""]
["",null,null,null,null,null,null,null,null,null,""]
["",null,null,null,null,null,null,null,null,null,""]
["",null,null,null,null,null,null,null,null,null,""]
["",null,null,null,null,null,null,null,null,null,""]
["",null,null,null,null,null,null,null,null,null,""]
["",null,null,null,null,null,null,null,null,null,""]
["",null,null,null,null,null,null,null,null,null,""]
["",null,null,null,null,null,null,null,null,null,""]
["",null,null,null,null,null,null,null,null,null,""]
["",null,null,null,null,null,null,null,null,null,""]
["",null,null,null,null,null,null,null,null,null,""]
["",null,null,null,null,null,null,null,null,null,""]
["",null,null,null,null,null,null,null,null,null,""]
["",null,null,null,null,null,null,null,null,null,""]
["",null,null,null,null,null,null,null,null,null,""]
["",null,null,null,null,null,null,null,null,null,""]
["",null,null,null,null,null,null,null,null,null,""]
["",null,null,null,null,null,null,null,null,null,""]
["",null,null,null,null,null,null,null,null,null,""]
["",null,null,null,null,null,null,null,null,null,""]
["",null,null,null,null,null,null,null,null,null,""]
["",null,null,null,null,null,null,null,null,null,""]
["",null,null,null,null,null,null,null,null,null,""]
["",null,null,null,null,null,null,null,null,null,""]
["",null,null,null,null,null,null,null,null,null,""]
["",null,null,null,null,null,null,null,null,null,""]
["",null,null,null,null,null,null,null,null,null,""]
["",null,null,null,null,null,null,null,null,null,""]
["",null,null,null,null,null,null,null,null,null,""]
["",null,null,null,null,null,null,null,null,null,""]
["",null,null,null,null,null,null,null,null,null,""]
["",null,null,null,null,null,null,null,null,null,""]
["",null,null,null,null,null,null,null,null,null,""]
["",null,null,null,null,null,null,null,null,null,""]
["",null,null,null,null,null,null,null,null,null,""]
["",null,null,null,null,null,null,null,null,null,""]
["",null,null,null,null,null,null,null,null,null,""]
["",null,null,null,null,null,null,null,null,null,""]
["",null,null,null,null,null,null,null,null,null,""]
["",null,null,null,null,null,null,null,null,null,""]
["",null,null,null,null,null,null,null,null,null,""]
["",null,null,null,null,null,null,null,null,null,""]
["",null,null,null,null,null,null,null,null,null,""]
["",null,null,null,null,null,null,null,null,null,""]
["",null,null,null,null,null,null,null,null,null,""]
["",null,null,null,null,null,null,null,null,null,""]
["",null,null,null,null,null,null,null,null,null,""]
["",null,null,null,null,null,null,null,null,null,""]
["",null,null,null,null,null,null,null,null,null,""]
["",null,null,null,null,null,null,null,null,null,""]
[{"$f":"IF(ISBLANK(B324),\"\",A323+1)","v":""},null,null,null,null,null,null,null,null,null,{"$f":"IF(H324-24/24=TODAY(),\"Истекает\",IF(H324-48/24=TODAY(),\"Истекает\",IF(H324-72/24=TODAY(),\"Истекает\",IF(D324=\"\",\"\",IF(ISBLANK(J324),IF(TODAY()<H324,\"В работе\",\"Истекло\"),IF(H324>=J324,\"Выполнено\",\"Просрочен\"))))))","v":""}]
["",null,null,null,null,null,null,null,null,null,""]
["",null,null,null,null,null,null,null,null,null,""]
["",null,null,null,null,null,null,null,null,null,""]
["",null,null,null,null,null,null,null,null,null,""]
["",null,null,null,null,null,null,null,null,null,""]
["",null,null,null,null,null,null,null,null,null,""]
["",null,null,null,null,null,null,null,null,null,""]
["",null,null,null,null,null,null,null,null,null,""]
["",null,null,null,null,null,null,null,null,null,""]
["",null,null,null,null,null,null,null,null,null,""]
["",null,null,null,null,null,null,null,null,null,""]
["",null,null,null,null,null,null,null,null,null,""]
["",null,null,null,null,null,null,null,null,null,""]
["",null,null,null,null,null,null,null,null,null,""]
["",null,null,null,null,null,null,null,null,null,""]
["",null,null,null,null,null,null,null,null,null,""]
["",null,null,null,null,null,null,null,null,null,""]
["",null,null,null,null,null,null,null,null,null,""]
["",null,null,null,null,null,null,null,null,null,""]
["",null,null,null,null,null,null,null,null,null,""]
["",null,null,null,null,null,null,null,null,null,""]
["",null,null,null,null,null,null,null,null,null,""]
["",null,null,null,null,null,null,null,null,null,""]
["",null,null,null,null,null,null,null,null,null,""]
["",null,null,null,null,null,null,null,null,null,""]
["",null,null,null,null,null,null,null,null,null,""]
["",null,null,null,null,null,null,null,null,null,""]
["",null,null,null,null,null,null,null,null,null,""]
["",null,null,null,null,null,null,null,null,null,""]
["",null,null,null,null,null,null,null,null,null,""]
["",null,null,null,null,null,null,null,null,null,""]
["",null,null,null,null,null,null,null,null,null,""]
["",null,null,null,null,null,null,null,null,null,""]
["",null,null,null,null,null,null,null,null,null,""]
["",null,null,null,null,null,null,null,null,null,""]
["",null,null,null,null,null,null,null,null,null,""]
["",null,null,null,null,null,null,null,null,null,""]
["",null,null,null,null,null,null,null,null,null,""]
["",null,null,null,null,null,null,null,null,null,""]
["",null,null,null,null,null,null,null,null,null,""]
["",null,null,null,null,null,null,null,null,null,""]
["",null,null,null,null,null,null,null,null,null,""]
["",null,null,null,null,null,null,null,null,null,""]
["",null,null,null,null,null,null,null,null,null,""]
["",null,null,null,null,null,null,null,null,null,""]
["",null,null,null,null,null,null,null,null,null,""]
["",null,null,null,null,null,null,null,null,null,""]
["",null,null,null,null,null,null,null,null,null,""]
["",null,null,null,null,null,null,null,null,null,""]
["",null,null,null,null,null,null,null,null,null,""]
["",null,null,null,null,null,null,null,null,null,""]
["",null,null,null,null,null,null,null,null,null,""]
["",null,null,null,null,null,null,null,null,null,""]
["",null,null,null,null,null,null,null,null,null,""]
["",null,null,null,null,null,null,null,null,null,""]
["",null,null,null,null,null,null,null,null,null,""]
["",null,null,null,null,null,null,null,null,null,""]
["",null,null,null,null,null,null,null,null,null,""]
["",null,null,null,null,null,null,null,null,null,""]
["",null,null,null,null,null,null,null,null,null,""]
["",null,null,null,null,null,null,null,null,null,""]
["",null,null,null,null,null,null,null,null,null,""]
["",null,null,null,null,null,null,null,null,null,""]
[{"$f":"IF(ISBLANK(B388),\"\",A387+1)","v":""},null,null,null,null,null,null,null,null,null,{"$f":"IF(H388-24/24=TODAY(),\"Истекает\",IF(H388-48/24=TODAY(),\"Истекает\",IF(H388-72/24=TODAY(),\"Истекает\",IF(D388=\"\",\"\",IF(ISBLANK(J388),IF(TODAY()<H388,\"В работе\",\"Истекло\"),IF(H388>=J388,\"Выполнено\",\"Просрочен\"))))))","v":""}]
["",null,null,null,null,null,null,null,null,null,""]
["",null,null,null,null,null,null,null,null,null,""]
["",null,null,null,null,null,null,null,null,null,""]
["",null,null,null,null,null,null,null,null,null,""]
["",null,null,null,null,null,null,null,null,null,""]
["",null,null,null,null,null,null,null,null,null,""]
["",null,null,null,null,null,null,null,null,null,""]
["",null,null,null,null,null,null,null,null,null,""]
["",null,null,null,null,null,null,null,null,null,""]
["",null,null,null,null,null,null,null,null,null,""]
["",null,null,null,null,null,null,null,null,null,""]
["",null,null,null,null,null,null,null,null,null,""]
["",null,null,null,null,null,null,null,null,null,""]
["",null,null,null,null,null,null,null,null,null,""]
["",null,null,null,null,null,null,null,null,null,""]
["",null,null,null,null,null,null,null,null,null,""]
["",null,null,null,null,null,null,null,null,null,""]
["",null,null,null,null,null,null,null,null,null,""]
["",null,null,null,null,null,null,null,null,null,""]
["",null,null,null,null,null,null,null,null,null,""]
["",null,null,null,null,null,null,null,null,null,""]
["",null,null,null,null,null,null,null,null,null,""]
["",null,null,null,null,null,null,null,null,null,""]
["",null,null,null,null,null,null,null,null,null,""]
["",null,null,null,null,null,null,null,null,null,""]
["",null,null,null,null,null,null,null,null,null,""]
["",null,null,null,null,null,null,null,null,null,""]
["",null,null,null,null,null,null,null,null,null,""]
["",null,null,null,null,null,null,null,null,null,""]
["",null,null,null,null,null,null,null,null,null,""]
["",null,null,null,null,null,null,null,null,null,""]
["",null,null,null,null,null,null,null,null,null,""]
["",null,null,null,null,null,null,null,null,null,""]
["",null,null,null,null,null,null,null,null,null,""]
["",null,null,null,null,null,null,null,null,null,""]
["",null,null,null,null,null,null,null,null,null,""]
["",null,null,null,null,null,null,null,null,null,""]
["",null,null,null,null,null,null,null,null,null,""]
["",null,null,null,null,null,null,null,null,null,""]
["",null,null,null,null,null,null,null,null,null,""]
["",null,null,null,null,null,null,null,null,null,""]
["",null,null,null,null,null,null,null,null,null,""]
["",null,null,null,null,null,null,null,null,null,""]
["",null,null,null,null,null,null,null,null,null,""]
["",null,null,null,null,null,null,null,null,null,""]
["",null,null,null,null,null,null,null,null,null,""]
["",null,null,null,null,null,null,null,null,null,""]
["",null,null,null,null,null,null,null,null,null,""]
["",null,null,null,null,null,null,null,null,null,""]
["",null,null,null,null,null,null,null,null,null,""]
["",null,null,null,null,null,null,null,null,null,""]
["",null,null,null,null,null,null,null,null,null,""]
["",null,null,null,null,null,null,null,null,null,""]
["",null,null,null,null,null,null,null,null,null,""]
["",null,null,null,null,null,null,null,null,null,""]
["",null,null,null,null,null,null,null,null,null,""]
["",null,null,null,null,null,null,null,null,null,""]
["",null,null,null,null,null,null,null,null,null,""]
["",null,null,null,null,null,null,null,null,null,""]
["",null,null,null,null,null,null,null,null,null,""]
["",null,null,null,null,null,null,null,null,null,""]
["",null,null,null,null,null,null,null,null,null,""]
["",null,null,null,null,null,null,null,null,null,""]
[{"$f":"IF(ISBLANK(B452),\"\",A451+1)","v":""},null,null,null,null,null,null,null,null,null,{"$f":"IF(H452-24/24=TODAY(),\"Истекает\",IF(H452-48/24=TODAY(),\"Истекает\",IF(H452-72/24=TODAY(),\"Истекает\",IF(D452=\"\",\"\",IF(ISBLANK(J452),IF(TODAY()<H452,\"В работе\",\"Истекло\"),IF(H452>=J452,\"Выполнено\",\"Просрочен\"))))))","v":""}]
["",null,null,null,null,null,null,null,null,null,""]
["",null,null,null,null,null,null,null,null,null,""]
["",null,null,null,null,null,null,null,null,null,""]
["",null,null,null,null,null,null,null,null,null,""]
["",null,null,null,null,null,null,null,null,null,""]
["",null,null,null,null,null,null,null,null,null,""]
["",null,null,null,null,null,null,null,null,null,""]
["",null,null,null,null,null,null,null,null,null,""]
["",null,null,null,null,null,null,null,null,null,""]
["",null,null,null,null,null,null,null,null,null,""]
["",null,null,null,null,null,null,null,null,null,""]
["",null,null,null,null,null,null,null,null,null,""]
["",null,null,null,null,null,null,null,null,null,""]
["",null,null,null,null,null,null,null,null,null,""]
["",null,null,null,null,null,null,null,null,null,""]
["",null,null,null,null,null,null,null,null,null,""]
["",null,null,null,null,null,null,null,null,null,""]
["",null,null,null,null,null,null,null,null,null,""]
["",null,null,null,null,null,null,null,null,null,""]
["",null,null,null,null,null,null,null,null,null,""]
["",null,null,null,null,null,null,null,null,null,""]
["",null,null,null,null,null,null,null,null,null,""]
["",null,null,null,null,null,null,null,null,null,""]
["",null,null,null,null,null,null,null,null,null,""]
["",null,null,null,null,null,null,null,null,null,""]
["",null,null,null,null,null,null,null,null,null,""]
["",null,null,null,null,null,null,null,null,null,""]
["",null,null,null,null,null,null,null,null,null,""]
["",null,null,null,null,null,null,null,null,null,""]
["",null,null,null,null,null,null,null,null,null,""]
["",null,null,null,null,null,null,null,null,null,""]
["",null,null,null,null,null,null,null,null,null,""]
["",null,null,null,null,null,null,null,null,null,""]
["",null,null,null,null,null,null,null,null,null,""]
["",null,null,null,null,null,null,null,null,null,""]
["",null,null,null,null,null,null,null,null,null,""]
["",null,null,null,null,null,null,null,null,null,""]
["",null,null,null,null,null,null,null,null,null,""]
["",null,null,null,null,null,null,null,null,null,""]
["",null,null,null,null,null,null,null,null,null,""]
["",null,null,null,null,null,null,null,null,null,""]
["",null,null,null,null,null,null,null,null,null,""]
["",null,null,null,null,null,null,null,null,null,""]
["",null,null,null,null,null,null,null,null,null,""]
["",null,null,null,null,null,null,null,null,null,""]
["",null,null,null,null,null,null,null,null,null,""]
["",null,null,null,null,null,null,null,null,null,""]
["",null,null,null,null,null,null,null,null,null,""]
["",null,null,null,null,null,null,null,null,null,""]
["",null,null,null,null,null,null,null,null,null,""]
["",null,null,null,null,null,null,null,null,null,""]
["",null,null,null,null,null,null,null,null,null,""]
["",null,null,null,null,null,null,null,null,null,""]
["",null,null,null,null,null,null,null,null,null,""]
["",null,null,null,null,null,null,null,null,null,""]
["",null,null,null,null,null,null,null,null,null,""]
["",null,null,null,null,null,null,null,null,null,""]
["",null,null,null,null,null,null,null,null,null,""]
["",null,null,null,null,null,null,null,null,null,""]
["",null,null,null,null,null,null,null,null,null,""]
["",null,null,null,null,null,null,null,null,null,""]
["",null,null,null,null,null,null,null,null,null,""]
["",null,null,null,null,null,null,null,null,null,""]
[{"$f":"IF(ISBLANK(B516),\"\",A515+1)","v":""},null,null,null,null,null,null,null,null,null,{"$f":"IF(H516-24/24=TODAY(),\"Истекает\",IF(H516-48/24=TODAY(),\"Истекает\",IF(H516-72/24=TODAY(),\"Истекает\",IF(D516=\"\",\"\",IF(ISBLANK(J516),IF(TODAY()<H516,\"В работе\",\"Истекло\"),IF(H516>=J516,\"Выполнено\",\"Просрочен\"))))))","v":""}]
["",null,null,null,null,null,null,null,null,null,""]
["",null,null,null,null,null,null,null,null,null,""]
["",null,null,null,null,null,null,null,null,null,""]
["",null,null,null,null,null,null,null,null,null,""]
["",null,null,null,null,null,null,null,null,null,""]
["",null,null,null,null,null,null,null,null,null,""]
["",null,null,null,null,null,null,null,null,null,""]
["",null,null,null,null,null,null,null,null,null,""]
["",null,null,null,null,null,null,null,null,null,""]
["",null,null,null,null,null,null,null,null,null,""]
["",null,null,null,null,null,null,null,null,null,""]
["",null,null,null,null,null,null,null,null,null,""]
["",null,null,null,null,null,null,null,null,null,""]
["",null,null,null,null,null,null,null,null,null,""]
["",null,null,null,null,null,null,null,null,null,""]
["",null,null,null,null,null,null,null,null,null,""]
["",null,null,null,null,null,null,null,null,null,""]
["",null,null,null,null,null,null,null,null,null,""]
["",null,null,null,null,null,null,null,null,null,""]
["",null,null,null,null,null,null,null,null,null,""]
["",null,null,null,null,null,null,null,null,null,""]
["",null,null,null,null,null,null,null,null,null,""]
["",null,null,null,null,null,null,null,null,null,""]
["",null,null,null,null,null,null,null,null,null,""]
["",null,null,null,null,null,null,null,null,null,""]
["",null,null,null,null,null,null,null,null,null,""]
["",null,null,null,null,null,null,null,null,null,""]
["",null,null,null,null,null,null,null,null,null,""]
["",null,null,null,null,null,null,null,null,null,""]
["",null,null,null,null,null,null,null,null,null,""]
["",null,null,null,null,null,null,null,null,null,""]
["",null,null,null,null,null,null,null,null,null,""]
["",null,null,null,null,null,null,null,null,null,""]
["",null,null,null,null,null,null,null,null,null,""]
["",null,null,null,null,null,null,null,null,null,""]
["",null,null,null,null,null,null,null,null,null,""]
["",null,null,null,null,null,null,null,null,null,""]
["",null,null,null,null,null,null,null,null,null,""]
["",null,null,null,null,null,null,null,null,null,""]
["",null,null,null,null,null,null,null,null,null,""]
["",null,null,null,null,null,null,null,null,null,""]
["",null,null,null,null,null,null,null,null,null,""]
["",null,null,null,null,null,null,null,null,null,""]
["",null,null,null,null,null,null,null,null,null,""]
["",null,null,null,null,null,null,null,null,null,""]
["",null,null,null,null,null,null,null,null,null,""]
["",null,null,null,null,null,null,null,null,null,""]
["",null,null,null,null,null,null,null,null,null,""]
["",null,null,null,null,null,null,null,null,null,""]
["",null,null,null,null,null,null,null,null,null,""]
["",null,null,null,null,null,null,null,null,null,""]
["",null,null,null,null,null,null,null,null,null,""]
["",null,null,null,null,null,null,null,null,null,""]
["",null,null,null,null,null,null,null,null,null,""]
["",null,null,null,null,null,null,null,null,null,""]
["",null,null,null,null,null,null,null,null,null,""]
["",null,null,null,null,null,null,null,null,null,""]
["",null,null,null,null,null,null,null,null,null,""]
["",null,null,null,null,null,null,null,null,null,""]
["",null,null,null,null,null,null,null,null,null,""]
["",null,null,null,null,null,null,null,null,null,""]
["",null,null,null,null,null,null,null,null,null,""]
["",null,null,null,null,null,null,null,null,null,""]
[{"$f":"IF(ISBLANK(B580),\"\",A579+1)","v":""},null,null,null,null,null,null,null,null,null,{"$f":"IF(H580-24/24=TODAY(),\"Истекает\",IF(H580-48/24=TODAY(),\"Истекает\",IF(H580-72/24=TODAY(),\"Истекает\",IF(D580=\"\",\"\",IF(ISBLANK(J580),IF(TODAY()<H580,\"В работе\",\"Истекло\"),IF(H580>=J580,\"Выполнено\",\"Просрочен\"))))))","v":""}]
["",null,null,null,null,null,null,null,null,null,""]
["",null,null,null,null,null,null,null,null,null,""]
["",null,null,null,null,null,null,null,null,null,""]
["",null,null,null,null,null,null,null,null,null,""]
["",null,null,null,null,null,null,null,null,null,""]
["",null,null,null,null,null,null,null,null,null,""]
["",null,null,null,null,null,null,null,null,null,""]
["",null,null,null,null,null,null,null,null,null,""]
["",null,null,null,null,null,null,null,null,null,""]
["",null,null,null,null,null,null,null,null,null,""]
["",null,null,null,null,null,null,null,null,null,""]
["",null,null,null,null,null,null,null,null,null,""]
["",null,null,null,null,null,null,null,null,null,""]
["",null,null,null,null,null,null,null,null,null,""]
["",null,null,null,null,null,null,null,null,null,""]
["",null,null,null,null,null,null,null,null,null,""]
["",null,null,null,null,null,null,null,null,null,""]
["",null,null,null,null,null,null,null,null,null,""]
["",null,null,null,null,null,null,null,null,null,""]
["",null,null,null,null,null,null,null,null,null,""]
["",null,null,null,null,null,null,null,null,null,""]
["",null,null,null,null,null,null,null,null,null,""]
["",null,null,null,null,null,null,null,null,null,""]
["",null,null,null,null,null,null,null,null,null,""]
["",null,null,null,null,null,null,null,null,null,""]
["",null,null,null,null,null,null,null,null,null,""]
["",null,null,null,null,null,null,null,null,null,""]
["",null,null,null,null,null,null,null,null,null,""]
["",null,null,null,null,null,null,null,null,null,""]
["",null,null,null,null,null,null,null,null,null,""]
["",null,null,null,null,null,null,null,null,null,""]
["",null,null,null,null,null,null,null,null,null,""]
["",null,null,null,null,null,null,null,null,null,""]
["",null,null,null,null,null,null,null,null,null,""]
["",null,null,null,null,null,null,null,null,null,""]
["",null,null,null,null,null,null,null,null,null,""]
["",null,null,null,null,null,null,null,null,null,""]
["",null,null,null,null,null,null,null,null,null,""]
["",null,null,null,null,null,null,null,null,null,""]
["",null,null,null,null,null,null,null,null,null,""]
["",null,null,null,null,null,null,null,null,null,""]
["",null,null,null,null,null,null,null,null,null,""]
["",null,null,null,null,null,null,null,null,null,""]
["",null,null,null,null,null,null,null,null,null,""]
["",null,null,null,null,null,null,null,null,null,""]
["",null,null,null,null,null,null,null,null,null,""]
["",null,null,null,null,null,null,null,null,null,""]
["",null,null,null,null,null,null,null,null,null,""]
["",null,null,null,null,null,null,null,null,null,""]
["",null,null,null,null,null,null,null,null,null,""]
["",null,null,null,null,null,null,null,null,null,""]
["",null,null,null,null,null,null,null,null,null,""]
["",null,null,null,null,null,null,null,null,null,""]
["",null,null,null,null,null,null,null,null,null,""]
["",null,null,null,null,null,null,null,null,null,""]
["",null,null,null,null,null,null,null,null,null,""]
["",null,null,null,null,null,null,null,null,null,""]
["",null,null,null,null,null,null,null,null,null,""]
["",null,null,null,null,null,null,null,null,null,""]
["",null,null,null,null,null,null,null,null,null,""]
["",null,null,null,null,null,null,null,null,null,""]
["",null,null,null,null,null,null,null,null,null,""]
["",null,null,null,null,null,null,null,null,null,""]
[{"$f":"IF(ISBLANK(B644),\"\",A643+1)","v":""},null,null,null,null,null,null,null,null,null,{"$f":"IF(H644-24/24=TODAY(),\"Истекает\",IF(H644-48/24=TODAY(),\"Истекает\",IF(H644-72/24=TODAY(),\"Истекает\",IF(D644=\"\",\"\",IF(ISBLANK(J644),IF(TODAY()<H644,\"В работе\",\"Истекло\"),IF(H644>=J644,\"Выполнено\",\"Просрочен\"))))))","v":""}]
["",null,null,null,null,null,null,null,null,null,""]
["",null,null,null,null,null,null,null,null,null,""]
["",null,null,null,null,null,null,null,null,null,""]
["",null,null,null,null,null,null,null,null,null,""]
["",null,null,null,null,null,null,null,null,null,""]
["",null,null,null,null,null,null,null,null,null,""]
["",null,null,null,null,null,null,null,null,null,""]
["",null,null,null,null,null,null,null,null,null,""]
["",null,null,null,null,null,null,null,null,null,""]
["",null,null,null,null,null,null,null,null,null,""]
["",null,null,null,null,null,null,null,null,null,""]
["",null,null,null,null,null,null,null,null,null,""]
["",null,null,null,null,null,null,null,null,null,""]
["",null,null,null,null,null,null,null,null,null,""]
["",null,null,null,null,null,null,null,null,null,""]
["",null,null,null,null,null,null,null,null,null,""]
["",null,null,null,null,null,null,null,null,null,""]
["",null,null,null,null,null,null,null,null,null,""]
["",null,null,null,null,null,null,null,null,null,""]
["",null,null,null,null,null,null,null,null,null,""]
["",null,null,null,null,null,null,null,null,null,""]
["",null,null,null,null,null,null,null,null,null,""]
["",null,null,null,null,null,null,null,null,null,""]
["",null,null,null,null,null,null,null,null,null,""]
["",null,null,null,null,null,null,null,null,null,""]
["",null,null,null,null,null,null,null,null,null,""]
["",null,null,null,null,null,null,null,null,null,""]
["",null,null,null,null,null,null,null,null,null,""]
["",null,null,null,null,null,null,null,null,null,""]
["",null,null,null,null,null,null,null,null,null,""]
["",null,null,null,null,null,null,null,null,null,""]
["",null,null,null,null,null,null,null,null,null,""]
["",null,null,null,null,null,null,null,null,null,""]
["",null,null,null,null,null,null,null,null,null,""]
["",null,null,null,null,null,null,null,null,null,""]
["",null,null,null,null,null,null,null,null,null,""]
["",null,null,null,null,null,null,null,null,null,""]
["",null,null,null,null,null,null,null,null,null,""]
["",null,null,null,null,null,null,null,null,null,""]
["",null,null,null,null,null,null,null,null,null,""]
["",null,null,null,null,null,null,null,null,null,""]
["",null,null,null,null,null,null,null,null,null,""]
["",null,null,null,null,null,null,null,null,null,""]
["",null,null,null,null,null,null,null,null,null,""]
["",null,null,null,null,null,null,null,null,null,""]
["",null,null,null,null,null,null,null,null,null,""]
["",null,null,null,null,null,null,null,null,null,""]
["",null,null,null,null,null,null,null,null,null,""]
["",null,null,null,null,null,null,null,null,null,""]
["",null,null,null,null,null,null,null,null,null,""]
["",null,null,null,null,null,null,null,null,null,""]
["",null,null,null,null,null,null,null,null,null,""]
["",null,null,null,null,null,null,null,null,null,""]
["",null,null,null,null,null,null,null,null,null,""]
["",null,null,null,null,null,null,null,null,null,""]
["",null,null,null,null,null,null,null,null,null,""]
["",null,null,null,null,null,null,null,null,null,""]
["",null,null,null,null,null,null,null,null,null,""]
["",null,null,null,null,null,null,null,null,null,""]
["",null,null,null,null,null,null,null,null,null,""]
["",null,null,null,null,null,null,null,null,null,""]
["",null,null,null,null,null,null,null,null,null,""]
["",null,null,null,null,null,null,null,null,null,""]
[{"$f":"IF(ISBLANK(B708),\"\",A707+1)","v":""},null,null,null,null,null,null,null,null,null,{"$f":"IF(H708-24/24=TODAY(),\"Истекает\",IF(H708-48/24=TODAY(),\"Истекает\",IF(H708-72/24=TODAY(),\"Истекает\",IF(D708=\"\",\"\",IF(ISBLANK(J708),IF(TODAY()<H708,\"В работе\",\"Истекло\"),IF(H708>=J708,\"Выполнено\",\"Просрочен\"))))))","v":""}]
["",null,null,null,null,null,null,null,null,null,""]
["",null,null,null,null,null,null,null,null,null,""]
["",null,null,null,null,null,null,null,null,null,""]
["",null,null,null,null,null,null,null,null,null,""]
["",null,null,null,null,null,null,null,null,null,""]
["",null,null,null,null,null,null,null,null,null,""]
["",null,null,null,null,null,null,null,null,null,""]
["",null,null,null,null,null,null,null,null,null,""]
["",null,null,null,null,null,null,null,null,null,""]
["",null,null,null,null,null,null,null,null,null,""]
["",null,null,null,null,null,null,null,null,null,""]
["",null,null,null,null,null,null,null,null,null,""]
["",null,null,null,null,null,null,null,null,null,""]
["",null,null,null,null,null,null,null,null,null,""]
["",null,null,null,null,null,null,null,null,null,""]
["",null,null,null,null,null,null,null,null,null,""]
["",null,null,null,null,null,null,null,null,null,""]
["",null,null,null,null,null,null,null,null,null,""]
["",null,null,null,null,null,null,null,null,null,""]
["",null,null,null,null,null,null,null,null,null,""]
["",null,null,null,null,null,null,null,null,null,""]
["",null,null,null,null,null,null,null,null,null,""]
["",null,null,null,null,null,null,null,null,null,""]
["",null,null,null,null,null,null,null,null,null,""]
["",null,null,null,null,null,null,null,null,null,""]
["",null,null,null,null,null,null,null,null,null,""]
["",null,null,null,null,null,null,null,null,null,""]
["",null,null,null,null,null,null,null,null,null,""]
["",null,null,null,null,null,null,null,null,null,""]
["",null,null,null,null,null,null,null,null,null,""]
["",null,null,null,null,null,null,null,null,null,""]
["",null,null,null,null,null,null,null,null,null,""]
["",null,null,null,null,null,null,null,null,null,""]
["",null,null,null,null,null,null,null,null,null,""]
["",null,null,null,null,null,null,null,null,null,""]
["",null,null,null,null,null,null,null,null,null,""]
["",null,null,null,null,null,null,null,null,null,""]
["",null,null,null,null,null,null,null,null,null,""]
["",null,null,null,null,null,null,null,null,null,""]
["",null,null,null,null,null,null,null,null,null,""]
["",null,null,null,null,null,null,null,null,null,""]
["",null,null,null,null,null,null,null,null,null,""]
["",null,null,null,null,null,null,null,null,null,""]
["",null,null,null,null,null,null,null,null,null,""]
["",null,null,null,null,null,null,null,null,null,""]
["",null,null,null,null,null,null,null,null,null,""]
["",null,null,null,null,null,null,null,null,null,""]
["",null,null,null,null,null,null,null,null,null,""]
["",null,null,null,null,null,null,null,null,null,""]
["",null,null,null,null,null,null,null,null,null,""]
["",null,null,null,null,null,null,null,null,null,""]
["",null,null,null,null,null,null,null,null,null,""]
["",null,null,null,null,null,null,null,null,null,""]
["",null,null,null,null,null,null,null,null,null,""]
["",null,null,null,null,null,null,null,null,null,""]
["",null,null,null,null,null,null,null,null,null,""]
["",null,null,null,null,null,null,null,null,null,""]
["",null,null,null,null,null,null,null,null,null,""]
["",null,null,null,null,null,null,null,null,null,""]
["",null,null,null,null,null,null,null,null,null,""]
["",null,null,null,null,null,null,null,null,null,""]
["",null,null,null,null,null,null,null,null,null,""]
["",null,null,null,null,null,null,null,null,null,""]
[{"$f":"IF(ISBLANK(B772),\"\",A771+1)","v":""},null,null,null,null,null,null,null,null,null,{"$f":"IF(H772-24/24=TODAY(),\"Истекает\",IF(H772-48/24=TODAY(),\"Истекает\",IF(H772-72/24=TODAY(),\"Истекает\",IF(D772=\"\",\"\",IF(ISBLANK(J772),IF(TODAY()<H772,\"В работе\",\"Истекло\"),IF(H772>=J772,\"Выполнено\",\"Просрочен\"))))))","v":""}]
["",null,null,null,null,null,null,null,null,null,""]
["",null,null,null,null,null,null,null,null,null,""]
["",null,null,null,null,null,null,null,null,null,""]
["",null,null,null,null,null,null,null,null,null,""]
["",null,null,null,null,null,null,null,null,null,""]
["",null,null,null,null,null,null,null,null,null,""]
["",null,null,null,null,null,null,null,null,null,""]
["",null,null,null,null,null,null,null,null,null,""]
["",null,null,null,null,null,null,null,null,null,""]
["",null,null,null,null,null,null,null,null,null,""]
["",null,null,null,null,null,null,null,null,null,""]
["",null,null,null,null,null,null,null,null,null,""]
["",null,null,null,null,null,null,null,null,null,""]
["",null,null,null,null,null,null,null,null,null,""]
["",null,null,null,null,null,null,null,null,null,""]
["",null,null,null,null,null,null,null,null,null,""]
["",null,null,null,null,null,null,null,null,null,""]
["",null,null,null,null,null,null,null,null,null,""]
["",null,null,null,null,null,null,null,null,null,""]
["",null,null,null,null,null,null,null,null,null,""]
["",null,null,null,null,null,null,null,null,null,""]
["",null,null,null,null,null,null,null,null,null,""]
["",null,null,null,null,null,null,null,null,null,""]
["",null,null,null,null,null,null,null,null,null,""]
["",null,null,null,null,null,null,null,null,null,""]
["",null,null,null,null,null,null,null,null,null,""]
["",null,null,null,null,null,null,null,null,null,""]
["",null,null,null,null,null,null,null,null,null,""]
["",null,null,null,null,null,null,null,null,null,""]
["",null,null,null,null,null,null,null,null,null,""]
["",null,null,null,null,null,null,null,null,null,""]
["",null,null,null,null,null,null,null,null,null,""]
["",null,null,null,null,null,null,null,null,null,""]
["",null,null,null,null,null,null,null,null,null,""]
["",null,null,null,null,null,null,null,null,null,""]
["",null,null,null,null,null,null,null,null,null,""]
["",null,null,null,null,null,null,null,null,null,""]
["",null,null,null,null,null,null,null,null,null,""]
["",null,null,null,null,null,null,null,null,null,""]
["",null,null,null,null,null,null,null,null,null,""]
["",null,null,null,null,null,null,null,null,null,""]
["",null,null,null,null,null,null,null,null,null,""]
["",null,null,null,null,null,null,null,null,null,""]
["",null,null,null,null,null,null,null,null,null,""]
["",null,null,null,null,null,null,null,null,null,""]
["",null,null,null,null,null,null,null,null,null,""]
["",null,null,null,null,null,null,null,null,null,""]
["",null,null,null,null,null,null,null,null,null,""]
["",null,null,null,null,null,null,null,null,null,""]
["",null,null,null,null,null,null,null,null,null,""]
["",null,null,null,null,null,null,null,null,null,""]
["",null,null,null,null,null,null,null,null,null,""]
["",null,null,null,null,null,null,null,null,null,""]
["",null,null,null,null,null,null,null,null,null,""]
["",null,null,null,null,null,null,null,null,null,""]
["",null,null,null,null,null,null,null,null,null,""]
["",null,null,null,null,null,null,null,null,null,""]
["",null,null,null,null,null,null,null,null,null,""]
["",null,null,null,null,null,null,null,null,null,""]
["",null,null,null,null,null,null,null,null,null,""]
["",null,null,null,null,null,null,null,null,null,""]
["",null,null,null,null,null,null,null,null,null,""]
["",null,null,null,null,null,null,null,null,null,""]
[{"$f":"IF(ISBLANK(B836),\"\",A835+1)","v":""},null,null,null,null,null,null,null,null,null,{"$f":"IF(H836-24/24=TODAY(),\"Истекает\",IF(H836-48/24=TODAY(),\"Истекает\",IF(H836-72/24=TODAY(),\"Истекает\",IF(D836=\"\",\"\",IF(ISBLANK(J836),IF(TODAY()<H836,\"В работе\",\"Истекло\"),IF(H836>=J836,\"Выполнено\",\"Просрочен\"))))))","v":""}]
["",null,null,null,null,null,null,null,null,null,""]
["",null,null,null,null,null,null,null,null,null,""]
["",null,null,null,null,null,null,null,null,null,""]
["",null,null,null,null,null,null,null,null,null,""]
["",null,null,null,null,null,null,null,null,null,""]
["",null,null,null,null,null,null,null,null,null,""]
["",null,null,null,null,null,null,null,null,null,""]
["",null,null,null,null,null,null,null,null,null,""]
["",null,null,null,null,null,null,null,null,null,""]
["",null,null,null,null,null,null,null,null,null,""]
["",null,null,null,null,null,null,null,null,null,""]
["",null,null,null,null,null,null,null,null,null,""]
["",null,null,null,null,null,null,null,null,null,""]
["",null,null,null,null,null,null,null,null,null,""]
["",null,null,null,null,null,null,null,null,null,""]
["",null,null,null,null,null,null,null,null,null,""]
["",null,null,null,null,null,null,null,null,null,""]
["",null,null,null,null,null,null,null,null,null,""]
["",null,null,null,null,null,null,null,null,null,""]
["",null,null,null,null,null,null,null,null,null,""]
["",null,null,null,null,null,null,null,null,null,""]
["",null,null,null,null,null,null,null,null,null,""]
["",null,null,null,null,null,null,null,null,null,""]
["",null,null,null,null,null,null,null,null,null,""]
["",null,null,null,null,null,null,null,null,null,""]
["",null,null,null,null,null,null,null,null,null,""]
["",null,null,null,null,null,null,null,null,null,""]
["",null,null,null,null,null,null,null,null,null,""]
["",null,null,null,null,null,null,null,null,null,""]
["",null,null,null,null,null,null,null,null,null,""]
["",null,null,null,null,null,null,null,null,null,""]
["",null,null,null,null,null,null,null,null,null,""]
["",null,null,null,null,null,null,null,null,null,""]
["",null,null,null,null,null,null,null,null,null,""]
["",null,null,null,null,null,null,null,null,null,""]
["",null,null,null,null,null,null,null,null,null,""]
["",null,null,null,null,null,null,null,null,null,""]
["",null,null,null,null,null,null,null,null,null,""]
["",null,null,null,null,null,null,null,null,null,""]
["",null,null,null,null,null,null,null,null,null,""]
["",null,null,null,null,null,null,null,null,null,""]
["",null,null,null,null,null,null,null,null,null,""]
["",null,null,null,null,null,null,null,null,null,""]
["",null,null,null,null,null,null,null,null,null,""]
["",null,null,null,null,null,null,null,null,null,""]
["",null,null,null,null,null,null,null,null,null,""]
["",null,null,null,null,null,null,null,null,null,""]
["",null,null,null,null,null,null,null,null,null,""]
["",null,null,null,null,null,null,null,null,null,""]
["",null,null,null,null,null,null,null,null,null,""]
["",null,null,null,null,null,null,null,null,null,""]
["",null,null,null,null,null,null,null,null,null,""]
["",null,null,null,null,null,null,null,null,null,""]
["",null,null,null,null,null,null,null,null,null,""]
["",null,null,null,null,null,null,null,null,null,""]
["",null,null,null,null,null,null,null,null,null,""]
["",null,null,null,null,null,null,null,null,null,""]
["",null,null,null,null,null,null,null,null,null,""]
["",null,null,null,null,null,null,null,null,null,""]
["",null,null,null,null,null,null,null,null,null,""]
["",null,null,null,null,null,null,null,null,null,""]
["",null,null,null,null,null,null,null,null,null,""]
["",null,null,null,null,null,null,null,null,null,""]
[{"$f":"IF(ISBLANK(B900),\"\",A899+1)","v":""},null,null,null,null,null,null,null,null,null,{"$f":"IF(H900-24/24=TODAY(),\"Истекает\",IF(H900-48/24=TODAY(),\"Истекает\",IF(H900-72/24=TODAY(),\"Истекает\",IF(D900=\"\",\"\",IF(ISBLANK(J900),IF(TODAY()<H900,\"В работе\",\"Истекло\"),IF(H900>=J900,\"Выполнено\",\"Просрочен\"))))))","v":""}]
["",null,null,null,null,null,null,null,null,null,""]
["",null,null,null,null,null,null,null,null,null,""]
["",null,null,null,null,null,null,null,null,null,""]
["",null,null,null,null,null,null,null,null,null,""]
["",null,null,null,null,null,null,null,null,null,""]
["",null,null,null,null,null,null,null,null,null,""]
["",null,null,null,null,null,null,null,null,null,""]
["",null,null,null,null,null,null,null,null,null,""]
["",null,null,null,null,null,null,null,null,null,""]
["",null,null,null,null,null,null,null,null,null,""]
["",null,null,null,null,null,null,null,null,null,""]
["",null,null,null,null,null,null,null,null,null,""]
["",null,null,null,null,null,null,null,null,null,""]
["",null,null,null,null,null,null,null,null,null,""]
["",null,null,null,null,null,null,null,null,null,""]
["",null,null,null,null,null,null,null,null,null,""]
["",null,null,null,null,null,null,null,null,null,""]
["",null,null,null,null,null,null,null,null,null,""]
["",null,null,null,null,null,null,null,null,null,""]
["",null,null,null,null,null,null,null,null,null,""]
["",null,null,null,null,null,null,null,null,null,""]
["",null,null,null,null,null,null,null,null,null,""]
["",null,null,null,null,null,null,null,null,null,""]
["",null,null,null,null,null,null,null,null,null,""]
["",null,null,null,null,null,null,null,null,null,""]
["",null,null,null,null,null,null,null,null,null,""]
["",null,null,null,null,null,null,null,null,null,""]
["",null,null,null,null,null,null,null,null,null,""]
["",null,null,null,null,null,null,null,null,null,""]
["",null,null,null,null,null,null,null,null,null,""]
["",null,null,null,null,null,null,null,null,null,""]
["",null,null,null,null,null,null,null,null,null,""]
["",null,null,null,null,null,null,null,null,null,""]
["",null,null,null,null,null,null,null,null,null,""]
["",null,null,null,null,null,null,null,null,null,""]
["",null,null,null,null,null,null,null,null,null,""]
["",null,null,null,null,null,null,null,null,null,""]
["",null,null,null,null,null,null,null,null,null,""]
["",null,null,null,null,null,null,null,null,null,""]
["",null,null,null,null,null,null,null,null,null,""]
["",null,null,null,null,null,null,null,null,null,""]
["",null,null,null,null,null,null,null,null,null,""]
["",null,null,null,null,null,null,null,null,null,""]
["",null,null,null,null,null,null,null,null,null,""]
["",null,null,null,null,null,null,null,null,null,""]
["",null,null,null,null,null,null,null,null,null,""]
["",null,null,null,null,null,null,null,null,null,""]
["",null,null,null,null,null,null,null,null,null,""]
["",null,null,null,null,null,null,null,null,null,""]
["",null,null,null,null,null,null,null,null,null,""]
["",null,null,null,null,null,null,null,null,null,""]
["",null,null,null,null,null,null,null,null,null,""]
["",null,null,null,null,null,null,null,null,null,""]
["",null,null,null,null,null,null,null,null,null,""]
["",null,null,null,null,null,null,null,null,null,""]
["",null,null,null,null,null,null,null,null,null,""]
["",null,null,null,null,null,null,null,null,null,""]
["",null,null,null,null,null,null,null,null,null,""]
["",null,null,null,null,null,null,null,null,null,""]
["",null,null,null,null,null,null,null,null,null,""]
["",null,null,null,null,null,null,null,null,null,""]
["",null,null,null,null,null,null,null,null,null,""]
["",null,null,null,null,null,null,null,null,null,""]
[{"$f":"IF(ISBLANK(B964),\"\",A963+1)","v":""},null,null,null,null,null,null,null,null,null,{"$f":"IF(H964-24/24=TODAY(),\"Истекает\",IF(H964-48/24=TODAY(),\"Истекает\",IF(H964-72/24=TODAY(),\"Истекает\",IF(D964=\"\",\"\",IF(ISBLANK(J964),IF(TODAY()<H964,\"В работе\",\"Истекло\"),IF(H964>=J964,\"Выполнено\",\"Просрочен\"))))))","v":""}]
["",null,null,null,null,null,null,null,null,null,""]
["",null,null,null,null,null,null,null,null,null,""]
["",null,null,null,null,null,null,null,null,null,""]
["",null,null,null,null,null,null,null,null,null,""]
["",null,null,null,null,null,null,null,null,null,""]
["",null,null,null,null,null,null,null,null,null,""]
["",null,null,null,null,null,null,null,null,null,""]
["",null,null,null,null,null,null,null,null,null,""]
["",null,null,null,null,null,null,null,null,null,""]
["",null,null,null,null,null,null,null,null,null,""]
["",null,null,null,null,null,null,null,null,null,""]
["",null,null,null,null,null,null,null,null,null,""]
["",null,null,null,null,null,null,null,null,null,""]
["",null,null,null,null,null,null,null,null,null,""]
["",null,null,null,null,null,null,null,null,null,""]
["",null,null,null,null,null,null,null,null,null,""]
["",null,null,null,null,null,null,null,null,null,""]
["",null,null,null,null,null,null,null,null,null,""]
["",null,null,null,null,null,null,null,null,null,""]
["",null,null,null,null,null,null,null,null,null,""]
["",null,null,null,null,null,null,null,null,null,""]
["",null,null,null,null,null,null,null,null,null,""]
["",null,null,null,null,null,null,null,null,null,""]
["",null,null,null,null,null,null,null,null,null,""]
["",null,null,null,null,null,null,null,null,null,""]
["",null,null,null,null,null,null,null,null,null,""]
["",null,null,null,null,null,null,null,null,null,""]
["",null,null,null,null,null,null,null,null,null,""]
["",null,null,null,null,null,null,null,null,null,""]
["",null,null,null,null,null,null,null,null,null,""]
["",null,null,null,null,null,null,null,null,null,""]
["",null,null,null,null,null,null,null,null,null,""]
["",null,null,null,null,null,null,null,null,null,""]
["",null,null,null,null,null,null,null,null,null,""]
["",null,null,null,null,null,null,null,null,null,""]
["",null,null,null,null,null,null,null,null,null,""]
["",null,null,null,null,null,null,null,null,null,""]
["",null,null,null,null,null,null,null,null,null,""]
["",null,null,null,null,null,null,null,null,null,""]
["",null,null,null,null,null,null,null,null,null,""]
["",null,null,null,null,null,null,null,null,null,""]
["",null,null,null,null,null,null,null,null,null,""]
["",null,null,null,null,null,null,null,null,null,""]
["",null,null,null,null,null,null,null,null,null,""]
["",null,null,null,null,null,null,null,null,null,""]
["",null,null,null,null,null,null,null,null,null,""]
["",null,null,null,null,null,null,null,null,null,""]
["",null,null,null,null,null,null,null,null,null,""]
["",null,null,null,null,null,null,null,null,null,""]
["",null,null,null,null,null,null,null,null,null,""]
["",null,null,null,null,null,null,null,null,null,""]
["",null,null,null,null,null,null,null,null,null,""]
["",null,null,null,null,null,null,null,null,null,""]
["",null,null,null,null,null,null,null,null,null,""]
["",null,null,null,null,null,null,null,null,null,""]
["",null,null,null,null,null,null,null,null,null,""]
["",null,null,null,null,null,null,null,null,null,""]
["",null,null,null,null,null,null,null,null,null,""]
["",null,null,null,null,null,null,null,null,null,""]
["",null,null,null,null,null,null,null,null,null,""]
["",null,null,null,null,null,null,null,null,null,""]
["",null,null,null,null,null,null,null,null,null,""]
["",null,null,null,null,null,null,null,null,null,""]
[{"$f":"IF(ISBLANK(B1028),\"\",A1027+1)","v":""},null,null,null,null,null,null,null,null,null,{"$f":"IF(H1028-24/24=TODAY(),\"Истекает\",IF(H1028-48/24=TODAY(),\"Истекает\",IF(H1028-72/24=TODAY(),\"Истекает\",IF(D1028=\"\",\"\",IF(ISBLANK(J1028),IF(TODAY()<H1028,\"В работе\",\"Истекло\"),IF(H1028>=J1028,\"Выполнено\",\"Просрочен\"))))))","v":""}]
["",null,null,null,null,null,null,null,null,null,""]
["",null,null,null,null,null,null,null,null,null,""]
["",null,null,null,null,null,null,null,null,null,""]
["",null,null,null,null,null,null,null,null,null,""]
["",null,null,null,null,null,null,null,null,null,""]
["",null,null,null,null,null,null,null,null,null,""]
["",null,null,null,null,null,null,null,null,null,""]
["",null,null,null,null,null,null,null,null,null,""]
["",null,null,null,null,null,null,null,null,null,""]
["",null,null,null,null,null,null,null,null,null,""]
["",null,null,null,null,null,null,null,null,null,""]
["",null,null,null,null,null,null,null,null,null,""]
["",null,null,null,null,null,null,null,null,null,""]
["",null,null,null,null,null,null,null,null,null,""]
["",null,null,null,null,null,null,null,null,null,""]
["",null,null,null,null,null,null,null,null,null,""]
["",null,null,null,null,null,null,null,null,null,""]
["",null,null,null,null,null,null,null,null,null,""]
["",null,null,null,null,null,null,null,null,null,""]
["",null,null,null,null,null,null,null,null,null,""]
["",null,null,null,null,null,null,null,null,null,""]
["",null,null,null,null,null,null,null,null,null,""]
["",null,null,null,null,null,null,null,null,null,""]
["",null,null,null,null,null,null,null,null,null,""]
["",null,null,null,null,null,null,null,null,null,""]
["",null,null,null,null,null,null,null,null,null,""]
["",null,null,null,null,null,null,null,null,null,""]
["",null,null,null,null,null,null,null,null,null,""]
["",null,null,null,null,null,null,null,null,null,""]
["",null,null,null,null,null,null,null,null,null,""]
["",null,null,null,null,null,null,null,null,null,""]
["",null,null,null,null,null,null,null,null,null,""]
["",null,null,null,null,null,null,null,null,null,""]
["",null,null,null,null,null,null,null,null,null,""]
["",null,null,null,null,null,null,null,null,null,""]
["",null,null,null,null,null,null,null,null,null,""]
["",null,null,null,null,null,null,null,null,null,""]
["",null,null,null,null,null,null,null,null,null,""]
["",null,null,null,null,null,null,null,null,null,""]
["",null,null,null,null,null,null,null,null,null,""]
["",null,null,null,null,null,null,null,null,null,""]
["",null,null,null,null,null,null,null,null,null,""]
["",null,null,null,null,null,null,null,null,null,""]
["",null,null,null,null,null,null,null,null,null,""]
["",null,null,null,null,null,null,null,null,null,""]
["",null,null,null,null,null,null,null,null,null,""]
["",null,null,null,null,null,null,null,null,null,""]
["",null,null,null,null,null,null,null,null,null,""]
["",null,null,null,null,null,null,null,null,null,""]
["",null,null,null,null,null,null,null,null,null,""]
["",null,null,null,null,null,null,null,null,null,""]
["",null,null,null,null,null,null,null,null,null,""]
["",null,null,null,null,null,null,null,null,null,""]
["",null,null,null,null,null,null,null,null,null,""]
["",null,null,null,null,null,null,null,null,null,""]
["",null,null,null,null,null,null,null,null,null,""]
["",null,null,null,null,null,null,null,null,null,""]
["",null,null,null,null,null,null,null,null,null,""]
["",null,null,null,null,null,null,null,null,null,""]
["",null,null,null,null,null,null,null,null,null,""]
["",null,null,null,null,null,null,null,null,null,""]
["",null,null,null,null,null,null,null,null,null,""]
["",null,null,null,null,null,null,null,null,null,""]
[{"$f":"IF(ISBLANK(B1092),\"\",A1091+1)","v":""},null,null,null,null,null,null,null,null,null,{"$f":"IF(H1092-24/24=TODAY(),\"Истекает\",IF(H1092-48/24=TODAY(),\"Истекает\",IF(H1092-72/24=TODAY(),\"Истекает\",IF(D1092=\"\",\"\",IF(ISBLANK(J1092),IF(TODAY()<H1092,\"В работе\",\"Истекло\"),IF(H1092>=J1092,\"Выполнено\",\"Просрочен\"))))))","v":""}]
["",null,null,null,null,null,null,null,null,null,""]
["",null,null,null,null,null,null,null,null,null,""]
["",null,null,null,null,null,null,null,null,null,""]
["",null,null,null,null,null,null,null,null,null,""]
["",null,null,null,null,null,null,null,null,null,""]
["",null,null,null,null,null,null,null,null,null,""]
["",null,null,null,null,null,null,null,null,null,""]
["",null,null,null,null,null,null,null,null,null,""]
["",null,null,null,null,null,null,null,null,null,""]
["",null,null,null,null,null,null,null,null,null,""]
["",null,null,null,null,null,null,null,null,null,""]
["",null,null,null,null,null,null,null,null,null,""]
["",null,null,null,null,null,null,null,null,null,""]
["",null,null,null,null,null,null,null,null,null,""]
["",null,null,null,null,null,null,null,null,null,""]
["",null,null,null,null,null,null,null,null,null,""]
["",null,null,null,null,null,null,null,null,null,""]
["",null,null,null,null,null,null,null,null,null,""]
["",null,null,null,null,null,null,null,null,null,""]
["",null,null,null,null,null,null,null,null,null,""]
["",null,null,null,null,null,null,null,null,null,""]
["",null,null,null,null,null,null,null,null,null,""]
["",null,null,null,null,null,null,null,null,null,""]
["",null,null,null,null,null,null,null,null,null,""]
["",null,null,null,null,null,null,null,null,null,""]
["",null,null,null,null,null,null,null,null,null,""]
["",null,null,null,null,null,null,null,null,null,""]
["",null,null,null,null,null,null,null,null,null,""]
["",null,null,null,null,null,null,null,null,null,""]
["",null,null,null,null,null,null,null,null,null,""]
["",null,null,null,null,null,null,null,null,null,""]
["",null,null,null,null,null,null,null,null,null,""]
["",null,null,null,null,null,null,null,null,null,""]
["",null,null,null,null,null,null,null,null,null,""]
["",null,null,null,null,null,null,null,null,null,""]
["",null,null,null,null,null,null,null,null,null,""]
["",null,null,null,null,null,null,null,null,null,""]
["",null,null,null,null,null,null,null,null,null,""]
["",null,null,null,null,null,null,null,null,null,""]
["",null,null,null,null,null,null,null,null,null,""]
["",null,null,null,null,null,null,null,null,null,""]
["",null,null,null,null,null,null,null,null,null,""]
["",null,null,null,null,null,null,null,null,null,""]
["",null,null,null,null,null,null,null,null,null,""]
["",null,null,null,null,null,null,null,null,null,""]
["",null,null,null,null,null,null,null,null,null,""]
["",null,null,null,null,null,null,null,null,null,""]
["",null,null,null,null,null,null,null,null,null,""]
["",null,null,null,null,null,null,null,null,null,""]
["",null,null,null,null,null,null,null,null,null,""]
["",null,null,null,null,null,null,null,null,null,""]
["",null,null,null,null,null,null,null,null,null,""]
["",null,null,null,null,null,null,null,null,null,""]
["",null,null,null,null,null,null,null,null,null,""]
["",null,null,null,null,null,null,null,null,null,""]
["",null,null,null,null,null,null,null,null,null,""]
["",null,null,null,null,null,null,null,null,null,""]
["",null,null,null,null,null,null,null,null,null,""]
["",null,null,null,null,null,null,null,null,null,""]
["",null,null,null,null,null,null,null,null,null,""]
["",null,null,null,null,null,null,null,null,null,""]
["",null,null,null,null,null,null,null,null,null,""]
["",null,null,null,null,null,null,null,null,null,""]
[{"$f":"IF(ISBLANK(B1156),\"\",A1155+1)","v":""},null,null,null,null,null,null,null,null,null,{"$f":"IF(H1156-24/24=TODAY(),\"Истекает\",IF(H1156-48/24=TODAY(),\"Истекает\",IF(H1156-72/24=TODAY(),\"Истекает\",IF(D1156=\"\",\"\",IF(ISBLANK(J1156),IF(TODAY()<H1156,\"В работе\",\"Истекло\"),IF(H1156>=J1156,\"Выполнено\",\"Просрочен\"))))))","v":""}]
["",null,null,null,null,null,null,null,null,null,""]
["",null,null,null,null,null,null,null,null,null,""]
["",null,null,null,null,null,null,null,null,null,""]
["",null,null,null,null,null,null,null,null,null,""]
["",null,null,null,null,null,null,null,null,null,""]
["",null,null,null,null,null,null,null,null,null,""]
["",null,null,null,null,null,null,null,null,null,""]
["",null,null,null,null,null,null,null,null,null,""]
["",null,null,null,null,null,null,null,null,null,""]
["",null,null,null,null,null,null,null,null,null,""]
["",null,null,null,null,null,null,null,null,null,""]
["",null,null,null,null,null,null,null,null,null,""]
["",null,null,null,null,null,null,null,null,null,""]
["",null,null,null,null,null,null,null,null,null,""]
["",null,null,null,null,null,null,null,null,null,""]
["",null,null,null,null,null,null,null,null,null,""]
["",null,null,null,null,null,null,null,null,null,""]
["",null,null,null,null,null,null,null,null,null,""]
["",null,null,null,null,null,null,null,null,null,""]
["",null,null,null,null,null,null,null,null,null,""]
["",null,null,null,null,null,null,null,null,null,""]
["",null,null,null,null,null,null,null,null,null,""]
["",null,null,null,null,null,null,null,null,null,""]
["",null,null,null,null,null,null,null,null,null,""]
["",null,null,null,null,null,null,null,null,null,""]
["",null,null,null,null,null,null,null,null,null,""]
["",null,null,null,null,null,null,null,null,null,""]
["",null,null,null,null,null,null,null,null,null,""]
["",null,null,null,null,null,null,null,null,null,""]
["",null,null,null,null,null,null,null,null,null,""]
["",null,null,null,null,null,null,null,null,null,""]
["",null,null,null,null,null,null,null,null,null,""]
["",null,null,null,null,null,null,null,null,null,""]
["",null,null,null,null,null,null,null,null,null,""]
["",null,null,null,null,null,null,null,null,null,""]
["",null,null,null,null,null,null,null,null,null,""]
["",null,null,null,null,null,null,null,null,null,""]
["",null,null,null,null,null,null,null,null,null,""]
["",null,null,null,null,null,null,null,null,null,""]
["",null,null,null,null,null,null,null,null,null,""]
["",null,null,null,null,null,null,null,null,null,""]
["",null,null,null,null,null,null,null,null,null,""]
["",null,null,null,null,null,null,null,null,null,""]
["",null,null,null,null,null,null,null,null,null,""]
["",null,null,null,null,null,null,null,null,null,""]
["",null,null,null,null,null,null,null,null,null,""]
["",null,null,null,null,null,null,null,null,null,""]
["",null,null,null,null,null,null,null,null,null,""]
["",null,null,null,null,null,null,null,null,null,""]
["",null,null,null,null,null,null,null,null,null,""]
["",null,null,null,null,null,null,null,null,null,""]
["",null,null,null,null,null,null,null,null,null,""]
["",null,null,null,null,null,null,null,null,null,""]
["",null,null,null,null,null,null,null,null,null,""]
["",null,null,null,null,null,null,null,null,null,""]
["",null,null,null,null,null,null,null,null,null,""]
["",null,null,null,null,null,null,null,null,null,""]
["",null,null,null,null,null,null,null,null,null,""]
["",null,null,null,null,null,null,null,null,null,""]
["",null,null,null,null,null,null,null,null,null,""]
["",null,null,null,null,null,null,null,null,null,""]
["",null,null,null,null,null,null,null,null,null,""]
["",null,null,null,null,null,null,null,null,null,""]
[{"$f":"IF(ISBLANK(B1220),\"\",A1219+1)","v":""},null,null,null,null,null,null,null,null,null,{"$f":"IF(H1220-24/24=TODAY(),\"Истекает\",IF(H1220-48/24=TODAY(),\"Истекает\",IF(H1220-72/24=TODAY(),\"Истекает\",IF(D1220=\"\",\"\",IF(ISBLANK(J1220),IF(TODAY()<H1220,\"В работе\",\"Истекло\"),IF(H1220>=J1220,\"Выполнено\",\"Просрочен\"))))))","v":""}]
["",null,null,null,null,null,null,null,null,null,""]
["",null,null,null,null,null,null,null,null,null,""]
["",null,null,null,null,null,null,null,null,null,""]
["",null,null,null,null,null,null,null,null,null,""]
["",null,null,null,null,null,null,null,null,null,""]
["",null,null,null,null,null,null,null,null,null,""]
["",null,null,null,null,null,null,null,null,null,""]
["",null,null,null,null,null,null,null,null,null,""]
["",null,null,null,null,null,null,null,null,null,""]
["",null,null,null,null,null,null,null,null,null,""]
["",null,null,null,null,null,null,null,null,null,""]
["",null,null,null,null,null,null,null,null,null,""]
["",null,null,null,null,null,null,null,null,null,""]
["",null,null,null,null,null,null,null,null,null,""]
["",null,null,null,null,null,null,null,null,null,""]
["",null,null,null,null,null,null,null,null,null,""]
["",null,null,null,null,null,null,null,null,null,""]
["",null,null,null,null,null,null,null,null,null,""]
["",null,null,null,null,null,null,null,null,null,""]
["",null,null,null,null,null,null,null,null,null,""]
["",null,null,null,null,null,null,null,null,null,""]
["",null,null,null,null,null,null,null,null,null,""]
["",null,null,null,null,null,null,null,null,null,""]
["",null,null,null,null,null,null,null,null,null,""]
["",null,null,null,null,null,null,null,null,null,""]
["",null,null,null,null,null,null,null,null,null,""]
["",null,null,null,null,null,null,null,null,null,""]
["",null,null,null,null,null,null,null,null,null,""]
["",null,null,null,null,null,null,null,null,null,""]
["",null,null,null,null,null,null,null,null,null,""]
["",null,null,null,null,null,null,null,null,null,""]
["",null,null,null,null,null,null,null,null,null,""]
["",null,null,null,null,null,null,null,null,null,""]
["",null,null,null,null,null,null,null,null,null,""]
["",null,null,null,null,null,null,null,null,null,""]
["",null,null,null,null,null,null,null,null,null,""]
["",null,null,null,null,null,null,null,null,null,""]
["",null,null,null,null,null,null,null,null,null,""]
["",null,null,null,null,null,null,null,null,null,""]
["",null,null,null,null,null,null,null,null,null,""]
["",null,null,null,null,null,null,null,null,null,""]
["",null,null,null,null,null,null,null,null,null,""]
["",null,null,null,null,null,null,null,null,null,""]
["",null,null,null,null,null,null,null,null,null,""]
["",null,null,null,null,null,null,null,null,null,""]
["",null,null,null,null,null,null,null,null,null,""]
["",null,null,null,null,null,null,null,null,null,""]
["",null,null,null,null,null,null,null,null,null,""]
["",null,null,null,null,null,null,null,null,null,""]
["",null,null,null,null,null,null,null,null,null,""]
["",null,null,null,null,null,null,null,null,null,""]
["",null,null,null,null,null,null,null,null,null,""]
["",null,null,null,null,null,null,null,null,null,""]
["",null,null,null,null,null,null,null,null,null,""]
["",null,null,null,null,null,null,null,null,null,""]
["",null,null,null,null,null,null,null,null,null,""]
["",null,null,null,null,null,null,null,null,null,""]
["",null,null,null,null,null,null,null,null,null,""]
["",null,null,null,null,null,null,null,null,null,""]
["",null,null,null,null,null,null,null,null,null,""]
["",null,null,null,null,null,null,null,null,null,""]
["",null,null,null,null,null,null,null,null,null,""]
["",null,null,null,null,null,null,null,null,null,""]
[{"$f":"IF(ISBLANK(B1284),\"\",A1283+1)","v":""},null,null,null,null,null,null,null,null,null,{"$f":"IF(H1284-24/24=TODAY(),\"Истекает\",IF(H1284-48/24=TODAY(),\"Истекает\",IF(H1284-72/24=TODAY(),\"Истекает\",IF(D1284=\"\",\"\",IF(ISBLANK(J1284),IF(TODAY()<H1284,\"В работе\",\"Истекло\"),IF(H1284>=J1284,\"Выполнено\",\"Просрочен\"))))))","v":""}]
["",null,null,null,null,null,null,null,null,null,""]
["",null,null,null,null,null,null,null,null,null,""]
["",null,null,null,null,null,null,null,null,null,""]
["",null,null,null,null,null,null,null,null,null,""]
["",null,null,null,null,null,null,null,null,null,""]
["",null,null,null,null,null,null,null,null,null,""]
["",null,null,null,null,null,null,null,null,null,""]
["",null,null,null,null,null,null,null,null,null,""]
["",null,null,null,null,null,null,null,null,null,""]
["",null,null,null,null,null,null,null,null,null,""]
["",null,null,null,null,null,null,null,null,null,""]
["",null,null,null,null,null,null,null,null,null,""]
["",null,null,null,null,null,null,null,null,null,""]
["",null,null,null,null,null,null,null,null,null,""]
["",null,null,null,null,null,null,null,null,null,""]
["",null,null,null,null,null,null,null,null,null,""]
["",null,null,null,null,null,null,null,null,null,""]
["",null,null,null,null,null,null,null,null,null,""]
["",null,null,null,null,null,null,null,null,null,""]
["",null,null,null,null,null,null,null,null,null,""]
["",null,null,null,null,null,null,null,null,null,""]
["",null,null,null,null,null,null,null,null,null,""]
["",null,null,null,null,null,null,null,null,null,""]
["",null,null,null,null,null,null,null,null,null,""]
["",null,null,null,null,null,null,null,null,null,""]
["",null,null,null,null,null,null,null,null,null,""]
["",null,null,null,null,null,null,null,null,null,""]
["",null,null,null,null,null,null,null,null,null,""]
["",null,null,null,null,null,null,null,null,null,""]
["",null,null,null,null,null,null,null,null,null,""]
["",null,null,null,null,null,null,null,null,null,""]
["",null,null,null,null,null,null,null,null,null,""]
["",null,null,null,null,null,null,null,null,null,""]
["",null,null,null,null,null,null,null,null,null,""]
["",null,null,null,null,null,null,null,null,null,""]
["",null,null,null,null,null,null,null,null,null,""]
["",null,null,null,null,null,null,null,null,null,""]
["",null,null,null,null,null,null,null,null,null,""]
["",null,null,null,null,null,null,null,null,null,""]
["",null,null,null,null,null,null,null,null,null,""]
["",null,null,null,null,null,null,null,null,null,""]
["",null,null,null,null,null,null,null,null,null,""]
["",null,null,null,null,null,null,null,null,null,""]
["",null,null,null,null,null,null,null,null,null,""]
["",null,null,null,null,null,null,null,null,null,""]
["",null,null,null,null,null,null,null,null,null,""]
["",null,null,null,null,null,null,null,null,null,""]
["",null,null,null,null,null,null,null,null,null,""]
["",null,null,null,null,null,null,null,null,null,""]
["",null,null,null,null,null,null,null,null,null,""]
["",null,null,null,null,null,null,null,null,null,""]
["",null,null,null,null,null,null,null,null,null,""]
["",null,null,null,null,null,null,null,null,null,""]
["",null,null,null,null,null,null,null,null,null,""]
["",null,null,null,null,null,null,null,null,null,""]
["",null,null,null,null,null,null,null,null,null,""]
["",null,null,null,null,null,null,null,null,null,""]
["",null,null,null,null,null,null,null,null,null,""]
["",null,null,null,null,null,null,null,null,null,""]
["",null,null,null,null,null,null,null,null,null,""]
["",null,null,null,null,null,null,null,null,null,""]
["",null,null,null,null,null,null,null,null,null,""]
["",null,null,null,null,null,null,null,null,null,""]
[{"$f":"IF(ISBLANK(B1348),\"\",A1347+1)","v":""},null,null,null,null,null,null,null,null,null,{"$f":"IF(H1348-24/24=TODAY(),\"Истекает\",IF(H1348-48/24=TODAY(),\"Истекает\",IF(H1348-72/24=TODAY(),\"Истекает\",IF(D1348=\"\",\"\",IF(ISBLANK(J1348),IF(TODAY()<H1348,\"В работе\",\"Истекло\"),IF(H1348>=J1348,\"Выполнено\",\"Просрочен\"))))))","v":""}]
["",null,null,null,null,null,null,null,null,null,""]
["",null,null,null,null,null,null,null,null,null,""]
["",null,null,null,null,null,null,null,null,null,""]
["",null,null,null,null,null,null,null,null,null,""]
["",null,null,null,null,null,null,null,null,null,""]
["",null,null,null,null,null,null,null,null,null,""]
["",null,null,null,null,null,null,null,null,null,""]
["",null,null,null,null,null,null,null,null,null,""]
["",null,null,null,null,null,null,null,null,null,""]
["",null,null,null,null,null,null,null,null,null,""]
["",null,null,null,null,null,null,null,null,null,""]
["",null,null,null,null,null,null,null,null,null,""]
["",null,null,null,null,null,null,null,null,null,""]
["",null,null,null,null,null,null,null,null,null,""]
["",null,null,null,null,null,null,null,null,null,""]
["",null,null,null,null,null,null,null,null,null,""]
["",null,null,null,null,null,null,null,null,null,""]
["",null,null,null,null,null,null,null,null,null,""]
["",null,null,null,null,null,null,null,null,null,""]
["",null,null,null,null,null,null,null,null,null,""]
["",null,null,null,null,null,null,null,null,null,""]
["",null,null,null,null,null,null,null,null,null,""]
["",null,null,null,null,null,null,null,null,null,""]
["",null,null,null,null,null,null,null,null,null,""]
["",null,null,null,null,null,null,null,null,null,""]
["",null,null,null,null,null,null,null,null,null,""]
["",null,null,null,null,null,null,null,null,null,""]
["",null,null,null,null,null,null,null,null,null,""]
["",null,null,null,null,null,null,null,null,null,""]
["",null,null,null,null,null,null,null,null,null,""]
["",null,null,null,null,null,null,null,null,null,""]
["",null,null,null,null,null,null,null,null,null,""]
["",null,null,null,null,null,null,null,null,null,""]
["",null,null,null,null,null,null,null,null,null,""]
["",null,null,null,null,null,null,null,null,null,""]
["",null,null,null,null,null,null,null,null,null,""]
["",null,null,null,null,null,null,null,null,null,""]
["",null,null,null,null,null,null,null,null,null,""]
["",null,null,null,null,null,null,null,null,null,""]
["",null,null,null,null,null,null,null,null,null,""]
["",null,null,null,null,null,null,null,null,null,""]
["",null,null,null,null,null,null,null,null,null,""]
["",null,null,null,null,null,null,null,null,null,""]
["",null,null,null,null,null,null,null,null,null,""]
["",null,null,null,null,null,null,null,null,null,""]
["",null,null,null,null,null,null,null,null,null,""]
["",null,null,null,null,null,null,null,null,null,""]
["",null,null,null,null,null,null,null,null,null,""]
["",null,null,null,null,null,null,null,null,null,""]
["",null,null,null,null,null,null,null,null,null,""]
["",null,null,null,null,null,null,null,null,null,""]
["",null,null,null,null,null,null,null,null,null,""]
["",null,null,null,null,null,null,null,null,null,""]
["",null,null,null,null,null,null,null,null,null,""]
["",null,null,null,null,null,null,null,null,null,""]
["",null,null,null,null,null,null,null,null,null,""]
["",null,null,null,null,null,null,null,null,null,""]
["",null,null,null,null,null,null,null,null,null,""]
["",null,null,null,null,null,null,null,null,null,""]
["",null,null,null,null,null,null,null,null,null,""]
["",null,null,null,null,null,null,null,null,null,""]
["",null,null,null,null,null,null,null,null,null,""]
["",null,null,null,null,null,null,null,null,null,""]
[{"$f":"IF(ISBLANK(B1412),\"\",A1411+1)","v":""},null,null,null,null,null,null,null,null,null,{"$f":"IF(H1412-24/24=TODAY(),\"Истекает\",IF(H1412-48/24=TODAY(),\"Истекает\",IF(H1412-72/24=TODAY(),\"Истекает\",IF(D1412=\"\",\"\",IF(ISBLANK(J1412),IF(TODAY()<H1412,\"В работе\",\"Истекло\"),IF(H1412>=J1412,\"Выполнено\",\"Просрочен\"))))))","v":""}]
["",null,null,null,null,null,null,null,null,null,""]
["",null,null,null,null,null,null,null,null,null,""]
["",null,null,null,null,null,null,null,null,null,""]
["",null,null,null,null,null,null,null,null,null,""]
["",null,null,null,null,null,null,null,null,null,""]
["",null,null,null,null,null,null,null,null,null,""]
["",null,null,null,null,null,null,null,null,null,""]
["",null,null,null,null,null,null,null,null,null,""]
["",null,null,null,null,null,null,null,null,null,""]
["",null,null,null,null,null,null,null,null,null,""]
["",null,null,null,null,null,null,null,null,null,""]
["",null,null,null,null,null,null,null,null,null,""]
["",null,null,null,null,null,null,null,null,null,""]
["",null,null,null,null,null,null,null,null,null,""]
["",null,null,null,null,null,null,null,null,null,""]
["",null,null,null,null,null,null,null,null,null,""]
["",null,null,null,null,null,null,null,null,null,""]
["",null,null,null,null,null,null,null,null,null,""]
["",null,null,null,null,null,null,null,null,null,""]
["",null,null,null,null,null,null,null,null,null,""]
["",null,null,null,null,null,null,null,null,null,""]
["",null,null,null,null,null,null,null,null,null,""]
["",null,null,null,null,null,null,null,null,null,""]
["",null,null,null,null,null,null,null,null,null,""]
["",null,null,null,null,null,null,null,null,null,""]
["",null,null,null,null,null,null,null,null,null,""]
["",null,null,null,null,null,null,null,null,null,""]
["",null,null,null,null,null,null,null,null,null,""]
["",null,null,null,null,null,null,null,null,null,""]
["",null,null,null,null,null,null,null,null,null,""]
["",null,null,null,null,null,null,null,null,null,""]
["",null,null,null,null,null,null,null,null,null,""]
["",null,null,null,null,null,null,null,null,null,""]
["",null,null,null,null,null,null,null,null,null,""]
["",null,null,null,null,null,null,null,null,null,""]
["",null,null,null,null,null,null,null,null,null,""]
["",null,null,null,null,null,null,null,null,null,""]
["",null,null,null,null,null,null,null,null,null,""]
["",null,null,null,null,null,null,null,null,null,""]
["",null,null,null,null,null,null,null,null,null,""]
["",null,null,null,null,null,null,null,null,null,""]
["",null,null,null,null,null,null,null,null,null,""]
["",null,null,null,null,null,null,null,null,null,""]
["",null,null,null,null,null,null,null,null,null,""]
["",null,null,null,null,null,null,null,null,null,""]
["",null,null,null,null,null,null,null,null,null,""]
["",null,null,null,null,null,null,null,null,null,""]
["",null,null,null,null,null,null,null,null,null,""]
["",null,null,null,null,null,null,null,null,null,""]
["",null,null,null,null,null,null,null,null,null,""]
["",null,null,null,null,null,null,null,null,null,""]
["",null,null,null,null,null,null,null,null,null,""]
["",null,null,null,null,null,null,null,null,null,""]
["",null,null,null,null,null,null,null,null,null,""]
["",null,null,null,null,null,null,null,null,null,""]
["",null,null,null,null,null,null,null,null,null,""]
["",null,null,null,null,null,null,null,null,null,""]
["",null,null,null,null,null,null,null,null,null,""]
["",null,null,null,null,null,null,null,null,null,""]
["",null,null,null,null,null,null,null,null,null,""]
["",null,null,null,null,null,null,null,null,null,""]
["",null,null,null,null,null,null,null,null,null,""]
["",null,null,null,null,null,null,null,null,null,""]
[{"$f":"IF(ISBLANK(B1476),\"\",A1475+1)","v":""},null,null,null,null,null,null,null,null,null,{"$f":"IF(H1476-24/24=TODAY(),\"Истекает\",IF(H1476-48/24=TODAY(),\"Истекает\",IF(H1476-72/24=TODAY(),\"Истекает\",IF(D1476=\"\",\"\",IF(ISBLANK(J1476),IF(TODAY()<H1476,\"В работе\",\"Истекло\"),IF(H1476>=J1476,\"Выполнено\",\"Просрочен\"))))))","v":""}]
["",null,null,null,null,null,null,null,null,null,""]
["",null,null,null,null,null,null,null,null,null,""]
["",null,null,null,null,null,null,null,null,null,""]
["",null,null,null,null,null,null,null,null,null,""]
["",null,null,null,null,null,null,null,null,null,""]
["",null,null,null,null,null,null,null,null,null,""]
["",null,null,null,null,null,null,null,null,null,""]
["",null,null,null,null,null,null,null,null,null,""]
["",null,null,null,null,null,null,null,null,null,""]
["",null,null,null,null,null,null,null,null,null,""]
["",null,null,null,null,null,null,null,null,null,""]
["",null,null,null,null,null,null,null,null,null,""]
["",null,null,null,null,null,null,null,null,null,""]
["",null,null,null,null,null,null,null,null,null,""]
["",null,null,null,null,null,null,null,null,null,""]
["",null,null,null,null,null,null,null,null,null,""]
["",null,null,null,null,null,null,null,null,null,""]
["",null,null,null,null,null,null,null,null,null,""]
["",null,null,null,null,null,null,null,null,null,""]
["",null,null,null,null,null,null,null,null,null,""]
["",null,null,null,null,null,null,null,null,null,""]
["",null,null,null,null,null,null,null,null,null,""]
["",null,null,null,null,null,null,null,null,null,""]
["",null,null,null,null,null,null,null,null,null,""]
["",null,null,null,null,null,null,null,null,null,""]
["",null,null,null,null,null,null,null,null,null,""]
["",null,null,null,null,null,null,null,null,null,""]
["",null,null,null,null,null,null,null,null,null,""]
["",null,null,null,null,null,null,null,null,null,""]
["",null,null,null,null,null,null,null,null,null,""]
["",null,null,null,null,null,null,null,null,null,""]
["",null,null,null,null,null,null,null,null,null,""]
["",null,null,null,null,null,null,null,null,null,""]
["",null,null,null,null,null,null,null,null,null,""]
["",null,null,null,null,null,null,null,null,null,""]
["",null,null,null,null,null,null,null,null,null,""]
["",null,null,null,null,null,null,null,null,null,""]
["",null,null,null,null,null,null,null,null,null,""]
["",null,null,null,null,null,null,null,null,null,""]
["",null,null,null,null,null,null,null,null,null,""]
["",null,null,null,null,null,null,null,null,null,""]
["",null,null,null,null,null,null,null,null,null,""]
["",null,null,null,null,null,null,null,null,null,""]
["",null,null,null,null,null,null,null,null,null,""]
["",null,null,null,null,null,null,null,null,null,""]
["",null,null,null,null,null,null,null,null,null,""]
["",null,null,null,null,null,null,null,null,null,""]
["",null,null,null,null,null,null,null,null,null,""]
["",null,null,null,null,null,null,null,null,null,""]
["",null,null,null,null,null,null,null,null,null,""]
["",null,null,null,null,null,null,null,null,null,""]
["",null,null,null,null,null,null,null,null,null,""]
["",null,null,null,null,null,null,null,null,null,""]
["",null,null,null,null,null,null,null,null,null,""]
["",null,null,null,null,null,null,null,null,null,""]
["",null,null,null,null,null,null,null,null,null,""]
["",null,null,null,null,null,null,null,null,null,""]
["",null,null,null,null,null,null,null,null,null,""]
["",null,null,null,null,null,null,null,null,null,""]
["",null,null,null,null,null,null,null,null,null,""]
["",null,null,null,null,null,null,null,null,null,""]
["",null,null,null,null,null,null,null,null,null,""]
["",null,null,null,null,null,null,null,null,null,""]
[{"$f":"IF(ISBLANK(B1540),\"\",A1539+1)","v":""},null,null,null,null,null,null,null,null,null,{"$f":"IF(H1540-24/24=TODAY(),\"Истекает\",IF(H1540-48/24=TODAY(),\"Истекает\",IF(H1540-72/24=TODAY(),\"Истекает\",IF(D1540=\"\",\"\",IF(ISBLANK(J1540),IF(TODAY()<H1540,\"В работе\",\"Истекло\"),IF(H1540>=J1540,\"Выполнено\",\"Просрочен\"))))))","v":""}]
["",null,null,null,null,null,null,null,null,null,""]
["",null,null,null,null,null,null,null,null,null,""]
["",null,null,null,null,null,null,null,null,null,""]
["",null,null,null,null,null,null,null,null,null,""]
["",null,null,null,null,null,null,null,null,null,""]
["",null,null,null,null,null,null,null,null,null,""]
["",null,null,null,null,null,null,null,null,null,""]
["",null,null,null,null,null,null,null,null,null,""]
["",null,null,null,null,null,null,null,null,null,""]
["",null,null,null,null,null,null,null,null,null,""]
["",null,null,null,null,null,null,null,null,null,""]
["",null,null,null,null,null,null,null,null,null,""]
["",null,null,null,null,null,null,null,null,null,""]
["",null,null,null,null,null,null,null,null,null,""]
["",null,null,null,null,null,null,null,null,null,""]
["",null,null,null,null,null,null,null,null,null,""]
["",null,null,null,null,null,null,null,null,null,""]
["",null,null,null,null,null,null,null,null,null,""]
["",null,null,null,null,null,null,null,null,null,""]
["",null,null,null,null,null,null,null,null,null,""]
["",null,null,null,null,null,null,null,null,null,""]
["",null,null,null,null,null,null,null,null,null,""]
["",null,null,null,null,null,null,null,null,null,""]
["",null,null,null,null,null,null,null,null,null,""]
["",null,null,null,null,null,null,null,null,null,""]
["",null,null,null,null,null,null,null,null,null,""]
["",null,null,null,null,null,null,null,null,null,""]
["",null,null,null,null,null,null,null,null,null,""]
["",null,null,null,null,null,null,null,null,null,""]
["",null,null,null,null,null,null,null,null,null,""]
["",null,null,null,null,null,null,null,null,null,""]
["",null,null,null,null,null,null,null,null,null,""]
["",null,null,null,null,null,null,null,null,null,""]
["",null,null,null,null,null,null,null,null,null,""]
["",null,null,null,null,null,null,null,null,null,""]
["",null,null,null,null,null,null,null,null,null,""]
["",null,null,null,null,null,null,null,null,null,""]
["",null,null,null,null,null,null,null,null,null,""]
["",null,null,null,null,null,null,null,null,null,""]
["",null,null,null,null,null,null,null,null,null,""]
["",null,null,null,null,null,null,null,null,null,""]
["",null,null,null,null,null,null,null,null,null,""]
["",null,null,null,null,null,null,null,null,null,""]
["",null,null,null,null,null,null,null,null,null,""]
["",null,null,null,null,null,null,null,null,null,""]
["",null,null,null,null,null,null,null,null,null,""]
["",null,null,null,null,null,null,null,null,null,""]
["",null,null,null,null,null,null,null,null,null,""]
["",null,null,null,null,null,null,null,null,null,""]
["",null,null,null,null,null,null,null,null,null,""]
["",null,null,null,null,null,null,null,null,null,""]
["",null,null,null,null,null,null,null,null,null,""]
["",null,null,null,null,null,null,null,null,null,""]
["",null,null,null,null,null,null,null,null,null,""]
["",null,null,null,null,null,null,null,null,null,""]
["",null,null,null,null,null,null,null,null,null,""]
["",null,null,null,null,null,null,null,null,null,""]
["",null,null,null,null,null,null,null,null,null,""]
["",null,null,null,null,null,null,null,null,null,""]
["",null,null,null,null,null,null,null,null,null,""]
["",null,null,null,null,null,null,null,null,null,""]
["",null,null,null,null,null,null,null,null,null,""]
["",null,null,null,null,null,null,null,null,null,""]
[{"$f":"IF(ISBLANK(B1604),\"\",A1603+1)","v":""},null,null,null,null,null,null,null,null,null,{"$f":"IF(H1604-24/24=TODAY(),\"Истекает\",IF(H1604-48/24=TODAY(),\"Истекает\",IF(H1604-72/24=TODAY(),\"Истекает\",IF(D1604=\"\",\"\",IF(ISBLANK(J1604),IF(TODAY()<H1604,\"В работе\",\"Истекло\"),IF(H1604>=J1604,\"Выполнено\",\"Просрочен\"))))))","v":""}]
["",null,null,null,null,null,null,null,null,null,""]
["",null,null,null,null,null,null,null,null,null,""]
["",null,null,null,null,null,null,null,null,null,""]
["",null,null,null,null,null,null,null,null,null,""]
["",null,null,null,null,null,null,null,null,null,""]
["",null,null,null,null,null,null,null,null,null,""]
["",null,null,null,null,null,null,null,null,null,""]
["",null,null,null,null,null,null,null,null,null,""]
["",null,null,null,null,null,null,null,null,null,""]
["",null,null,null,null,null,null,null,null,null,""]
["",null,null,null,null,null,null,null,null,null,""]
["",null,null,null,null,null,null,null,null,null,""]
["",null,null,null,null,null,null,null,null,null,""]
["",null,null,null,null,null,null,null,null,null,""]
["",null,null,null,null,null,null,null,null,null,""]
["",null,null,null,null,null,null,null,null,null,""]
["",null,null,null,null,null,null,null,null,null,""]
["",null,null,null,null,null,null,null,null,null,""]
["",null,null,null,null,null,null,null,null,null,""]
["",null,null,null,null,null,null,null,null,null,""]
["",null,null,null,null,null,null,null,null,null,""]
["",null,null,null,null,null,null,null,null,null,""]
["",null,null,null,null,null,null,null,null,null,""]
["",null,null,null,null,null,null,null,null,null,""]
["",null,null,null,null,null,null,null,null,null,""]
["",null,null,null,null,null,null,null,null,null,""]
["",null,null,null,null,null,null,null,null,null,""]
["",null,null,null,null,null,null,null,null,null,""]
["",null,null,null,null,null,null,null,null,null,""]
["",null,null,null,null,null,null,null,null,null,""]
["",null,null,null,null,null,null,null,null,null,""]
["",null,null,null,null,null,null,null,null,null,""]
["",null,null,null,null,null,null,null,null,null,""]
["",null,null,null,null,null,null,null,null,null,""]
["",null,null,null,null,null,null,null,null,null,""]
["",null,null,null,null,null,null,null,null,null,""]
["",null,null,null,null,null,null,null,null,null,""]
["",null,null,null,null,null,null,null,null,null,""]
["",null,null,null,null,null,null,null,null,null,""]
["",null,null,null,null,null,null,null,null,null,""]
["",null,null,null,null,null,null,null,null,null,""]
["",null,null,null,null,null,null,null,null,null,""]
["",null,null,null,null,null,null,null,null,null,""]
["",null,null,null,null,null,null,null,null,null,""]
["",null,null,null,null,null,null,null,null,null,""]
["",null,null,null,null,null,null,null,null,null,""]
["",null,null,null,null,null,null,null,null,null,""]
["",null,null,null,null,null,null,null,null,null,""]
["",null,null,null,null,null,null,null,null,null,""]
["",null,null,null,null,null,null,null,null,null,""]
["",null,null,null,null,null,null,null,null,null,""]
["",null,null,null,null,null,null,null,null,null,""]
["",null,null,null,null,null,null,null,null,null,""]
["",null,null,null,null,null,null,null,null,null,""]
["",null,null,null,null,null,null,null,null,null,""]
["",null,null,null,null,null,null,null,null,null,""]
["",null,null,null,null,null,null,null,null,null,""]
["",null,null,null,null,null,null,null,null,null,""]
["",null,null,null,null,null,null,null,null,null,""]
["",null,null,null,null,null,null,null,null,null,""]
["",null,null,null,null,null,null,null,null,null,""]
["",null,null,null,null,null,null,null,null,null,""]
["",null,null,null,null,null,null,null,null,null,""]
[{"$f":"IF(ISBLANK(B1668),\"\",A1667+1)","v":""},null,null,null,null,null,null,null,null,null,{"$f":"IF(H1668-24/24=TODAY(),\"Истекает\",IF(H1668-48/24=TODAY(),\"Истекает\",IF(H1668-72/24=TODAY(),\"Истекает\",IF(D1668=\"\",\"\",IF(ISBLANK(J1668),IF(TODAY()<H1668,\"В работе\",\"Истекло\"),IF(H1668>=J1668,\"Выполнено\",\"Просрочен\"))))))","v":""}]
["",null,null,null,null,null,null,null,null,null,""]
["",null,null,null,null,null,null,null,null,null,""]
["",null,null,null,null,null,null,null,null,null,""]
["",null,null,null,null,null,null,null,null,null,""]
["",null,null,null,null,null,null,null,null,null,""]
["",null,null,null,null,null,null,null,null,null,""]
["",null,null,null,null,null,null,null,null,null,""]
["",null,null,null,null,null,null,null,null,null,""]
["",null,null,null,null,null,null,null,null,null,""]
["",null,null,null,null,null,null,null,null,null,""]
["",null,null,null,null,null,null,null,null,null,""]
["",null,null,null,null,null,null,null,null,null,""]
["",null,null,null,null,null,null,null,null,null,""]
["",null,null,null,null,null,null,null,null,null,""]
["",null,null,null,null,null,null,null,null,null,""]
["",null,null,null,null,null,null,null,null,null,""]
["",null,null,null,null,null,null,null,null,null,""]
["",null,null,null,null,null,null,null,null,null,""]
["",null,null,null,null,null,null,null,null,null,""]
["",null,null,null,null,null,null,null,null,null,""]
["",null,null,null,null,null,null,null,null,null,""]
["",null,null,null,null,null,null,null,null,null,""]
["",null,null,null,null,null,null,null,null,null,""]
["",null,null,null,null,null,null,null,null,null,""]
["",null,null,null,null,null,null,null,null,null,""]
["",null,null,null,null,null,null,null,null,null,""]
["",null,null,null,null,null,null,null,null,null,""]
["",null,null,null,null,null,null,null,null,null,""]
["",null,null,null,null,null,null,null,null,null,""]
["",null,null,null,null,null,null,null,null,null,""]
["",null,null,null,null,null,null,null,null,null,""]
["",null,null,null,null,null,null,null,null,null,""]
["",null,null,null,null,null,null,null,null,null,""]
["",null,null,null,null,null,null,null,null,null,""]
["",null,null,null,null,null,null,null,null,null,""]
["",null,null,null,null,null,null,null,null,null,""]
["",null,null,null,null,null,null,null,null,null,""]
["",null,null,null,null,null,null,null,null,null,""]
["",null,null,null,null,null,null,null,null,null,""]
["",null,null,null,null,null,null,null,null,null,""]
["",null,null,null,null,null,null,null,null,null,""]
["",null,null,null,null,null,null,null,null,null,""]
["",null,null,null,null,null,null,null,null,null,""]
["",null,null,null,null,null,null,null,null,null,""]
["",null,null,null,null,null,null,null,null,null,""]
["",null,null,null,null,null,null,null,null,null,""]
["",null,null,null,null,null,null,null,null,null,""]
["",null,null,null,null,null,null,null,null,null,""]
["",null,null,null,null,null,null,null,null,null,""]
["",null,null,null,null,null,null,null,null,null,""]
["",null,null,null,null,null,null,null,null,null,""]
["",null,null,null,null,null,null,null,null,null,""]
["",null,null,null,null,null,null,null,null,null,""]
["",null,null,null,null,null,null,null,null,null,""]
["",null,null,null,null,null,null,null,null,null,""]
["",null,null,null,null,null,null,null,null,null,""]
["",null,null,null,null,null,null,null,null,null,""]
["",null,null,null,null,null,null,null,null,null,""]
["",null,null,null,null,null,null,null,null,null,""]
["",null,null,null,null,null,null,null,null,null,""]
["",null,null,null,null,null,null,null,null,null,""]
["",null,null,null,null,null,null,null,null,null,""]
["",null,null,null,null,null,null,null,null,null,""]
[{"$f":"IF(ISBLANK(B1732),\"\",A1731+1)","v":""},null,null,null,null,null,null,null,null,null,{"$f":"IF(H1732-24/24=TODAY(),\"Истекает\",IF(H1732-48/24=TODAY(),\"Истекает\",IF(H1732-72/24=TODAY(),\"Истекает\",IF(D1732=\"\",\"\",IF(ISBLANK(J1732),IF(TODAY()<H1732,\"В работе\",\"Истекло\"),IF(H1732>=J1732,\"Выполнено\",\"Просрочен\"))))))","v":""}]
["",null,null,null,null,null,null,null,null,null,""]
["",null,null,null,null,null,null,null,null,null,""]
["",null,null,null,null,null,null,null,null,null,""]
["",null,null,null,null,null,null,null,null,null,""]
["",null,null,null,null,null,null,null,null,null,""]
["",null,null,null,null,null,null,null,null,null,""]
["",null,null,null,null,null,null,null,null,null,""]
["",null,null,null,null,null,null,null,null,null,""]
["",null,null,null,null,null,null,null,null,null,""]
["",null,null,null,null,null,null,null,null,null,""]
["",null,null,null,null,null,null,null,null,null,""]
["",null,null,null,null,null,null,null,null,null,""]
["",null,null,null,null,null,null,null,null,null,""]
["",null,null,null,null,null,null,null,null,null,""]
["",null,null,null,null,null,null,null,null,null,""]
["",null,null,null,null,null,null,null,null,null,""]
["",null,null,null,null,null,null,null,null,null,""]
["",null,null,null,null,null,null,null,null,null,""]
["",null,null,null,null,null,null,null,null,null,""]
["",null,null,null,null,null,null,null,null,null,""]
["",null,null,null,null,null,null,null,null,null,""]
["",null,null,null,null,null,null,null,null,null,""]
["",null,null,null,null,null,null,null,null,null,""]
["",null,null,null,null,null,null,null,null,null,""]
["",null,null,null,null,null,null,null,null,null,""]
["",null,null,null,null,null,null,null,null,null,""]
["",null,null,null,null,null,null,null,null,null,""]
["",null,null,null,null,null,null,null,null,null,""]
["",null,null,null,null,null,null,null,null,null,""]
["",null,null,null,null,null,null,null,null,null,""]
["",null,null,null,null,null,null,null,null,null,""]
["",null,null,null,null,null,null,null,null,null,""]
["",null,null,null,null,null,null,null,null,null,""]
["",null,null,null,null,null,null,null,null,null,""]
["",null,null,null,null,null,null,null,null,null,""]
["",null,null,null,null,null,null,null,null,null,""]
["",null,null,null,null,null,null,null,null,null,""]
["",null,null,null,null,null,null,null,null,null,""]
["",null,null,null,null,null,null,null,null,null,""]
["",null,null,null,null,null,null,null,null,null,""]
["",null,null,null,null,null,null,null,null,null,""]
["",null,null,null,null,null,null,null,null,null,""]
["",null,null,null,null,null,null,null,null,null,""]
["",null,null,null,null,null,null,null,null,null,""]
["",null,null,null,null,null,null,null,null,null,""]
["",null,null,null,null,null,null,null,null,null,""]
["",null,null,null,null,null,null,null,null,null,""]
["",null,null,null,null,null,null,null,null,null,""]
["",null,null,null,null,null,null,null,null,null,""]
["",null,null,null,null,null,null,null,null,null,""]
["",null,null,null,null,null,null,null,null,null,""]
["",null,null,null,null,null,null,null,null,null,""]
["",null,null,null,null,null,null,null,null,null,""]
["",null,null,null,null,null,null,null,null,null,""]
["",null,null,null,null,null,null,null,null,null,""]
["",null,null,null,null,null,null,null,null,null,""]
["",null,null,null,null,null,null,null,null,null,""]
["",null,null,null,null,null,null,null,null,null,""]
["",null,null,null,null,null,null,null,null,null,""]
["",null,null,null,null,null,null,null,null,null,""]
["",null,null,null,null,null,null,null,null,null,""]
["",null,null,null,null,null,null,null,null,null,""]
["",null,null,null,null,null,null,null,null,null,""]
[{"$f":"IF(ISBLANK(B1796),\"\",A1795+1)","v":""},null,null,null,null,null,null,null,null,null,{"$f":"IF(H1796-24/24=TODAY(),\"Истекает\",IF(H1796-48/24=TODAY(),\"Истекает\",IF(H1796-72/24=TODAY(),\"Истекает\",IF(D1796=\"\",\"\",IF(ISBLANK(J1796),IF(TODAY()<H1796,\"В работе\",\"Истекло\"),IF(H1796>=J1796,\"Выполнено\",\"Просрочен\"))))))","v":""}]
["",null,null,null,null,null,null,null,null,null,""]
["",null,null,null,null,null,null,null,null,null,""]
["",null,null,null,null,null,null,null,null,null,""]
["",null,null,null,null,null,null,null,null,null,""]
["",null,null,null,null,null,null,null,null,null,""]
["",null,null,null,null,null,null,null,null,null,""]
["",null,null,null,null,null,null,null,null,null,""]
["",null,null,null,null,null,null,null,null,null,""]
["",null,null,null,null,null,null,null,null,null,""]
["",null,null,null,null,null,null,null,null,null,""]
["",null,null,null,null,null,null,null,null,null,""]
["",null,null,null,null,null,null,null,null,null,""]
["",null,null,null,null,null,null,null,null,null,""]
["",null,null,null,null,null,null,null,null,null,""]